{"text_format":"1","workbook":"xlsx","n_sheets":6,"sheets":["本ファイルの説明と操作手順","企総用・入力（新規申込）","企総用・入力（修正、変更等）","VBA処理メモ","コード一覧","コード一覧（コード値参照用）"],"not_rendered":{"charts":0,"images":1,"macros":1,"external_links":0,"defined_names":31,"comments":0,"pivot_tables":0},"unopened":[],"bounds":{"document_bytes":16777216,"sheet_cells":100000,"rows_first":2000,"rows_last":500,"rows_between":2000,"halvings":0,"cell_chars":16384,"cell_head_chars":4096},"cells_cut":0,"cells_raw":0,"read":"whole","date_system":"1900"}

{"sheet":"本ファイルの説明と操作手順","index":0,"n_rows":14,"n_cols":4,"rows_kept":14,"cut":false,"hidden":false,"merged":[[13,2,13,3]]}
[null,"「企総台帳型入力データ作成ツール」の説明と操作手順"]
[]
[null,"本作成書は、企業総合台帳型入力データを作成するためのものです。"]
[null,"当シートのほか、「企総用・入力（新規申込）」シート、「企総用・入力（修正、変更等）」シートおよび「コード一覧」シートで構成されています。"]
[]
[null,"操作手順に従い、Webサービスにアップロードする入力データファイルを作成してください。"]
[]
[null,"■操作手順"]
[null,"手順１",null,"1.　　「企総用・入力（新規申込）」シートおよび「企総用・入力（修正、変更等）」シート内容をクリアします。※必要に応じて実施してください。"]
[null,"手順２","　「企総用・入力（新規申込）」シートおよび\n「企総用・入力（修正、変更等）」シートへの入力\n","1.　「企総用・入力（新規申込）」シートおよび「企総用・入力（修正、変更等）」シートにおいて、保険申込に係る必要情報を入力項目欄に入力します。\n\n　■　下線タイトル文字列をクリックすることにより、その項目に入力すべき値の一覧を見ることができます。\n　\n　■　「企総用・入力（修正、変更等）」シートにて、削除が必要な項目がある場合には、該当の項目に－（ハイフン）を入力してください。\n\n【注意事項】\n・　■色が表示されたセルは必須項目となっておりますので、必ず情報を入力してください。\n\n・　■色が表示されたセルは関連項目の入力により必須項目となっておりますので、必ず情報を入力してください。\n\n・　■色が表示されたセルは関連項目の入力により入力が必要になる可能性がある項目となっておりますので、必要に応じて情報を入力してください。\n\n・　新規に行を追加する場合、既存行をコピーし申込データを入力してください。既存行をコピーせずに申込データを追加した場合、処理は保証されません。\n\n・　本ツールには非表示としている部分が複数あります。\n　　非表示としている部分を含んでコピー&ペーストを行うと、列ズレおよび行ズレにより不適切な値が入力されエラーとなる可能性があります。\n　　コピー&ペーストを行う場合は、セル単位で行うか、列ズレおよび行ズレに十分にご注意いただいた上で実施していただく様にお願いいたします。\n　　また、RPA等により作業を自動化する場合も同様のご注意をお願いいたします。\n\n・　入力シートのタイトル部の名称を変更した場合やシートフォーマットを変更した場合など、正しく処理されません。"]
[null,"手順３","企業総合台帳型入力データの作成","1.　手順２で入力完了後、「データ書き出し」ボタンを押し、ファイル名称規則に則り名前を付けて保存します。\n\n　■　「企総用・入力（新規申込）」シートおよび「企総用・入力（修正、変更等）」シートに入力されている情報が入力データとして出力されます。\n\n　■　ファイル名は拡張子を含めて全角50文字（半角100文字）以内にしてください。"]
[]
[]
[null,"【免責事項】","当該Excelファイルの品質は一切保証いたしませんので使用者の責任においてご利用ください。また、発生したいかなる問題について当方は一切の責任を負いかねますので、その旨、ご了承ください。"]

{"sheet":"企総用・入力（新規申込）","index":1,"n_rows":117,"n_cols":144,"rows_kept":117,"cut":false,"hidden":false,"merged":[[4,8,4,9],[5,8,5,9],[6,8,6,9],[7,8,7,9]]}
[]
[null,"企業総合保険(2110）- 新規申込"]
[]
[]
[null,null,null,null,null,null,null,null,"証券番号－本支店"]
[null,null,null,null,null,null,null,null,"証券番号－\n特約コード"]
[null,null,null,null,null,null,null,null,"証券番号－年度",null,null,null,null,null,{"$f":"\"本日のNEXI会計年度は\"&RIGHT(IF(MONTH(NOW())<=3, YEAR(NOW())-1, YEAR(NOW())), 2)&\"年度です。\"","v":"本日のNEXI会計年度は24年度です。"}]
[null,null,null,null,null,null,null,null,"保険利用者コード"]
[]
[null,null,"ソート順",1,2,3,4,5,6,7,8,33,34,36,35,37,9,40,41,38,39,null,46,47,26,32,18,49,50,48,51,52,null,54,42,null,55,56,57,58,59,null,60,64,61,62,72,73,74,75,76,77,null,null,81,86,83,84,80,87,88,null,81,86,83,84,80,87,88,null,81,86,83,84,80,87,88,null,81,86,83,84,80,87,88,null,81,86,83,84,80,87,88,79,90,101,112,123,10,11,12,13,14,15,16,17,19,20,21,22,23,24,25,27,28,29,30,31,43,44,45,53,63,65,66,68,69,70,71,82,85,93,96,104,107,115,118,126,129,133,134,135,136,67]
[null,"タイトル","タイトル","シートID","処理種別","証券番号－本支店","証券番号\n－特約コード","証券番号\n－年度","証券番号\n－一連番号","枝番","履歴番号","申込者","被保険者","保険金受取人","被保険者\n部門","保険申込日","契約形態","輸出契約等\n締結日","輸出契約等\n変更日","変更事由","元枝番","保険目的等譲渡日","輸出契約等番号","リファレンス番号","特約商品\n－外貨建","特約商品\n－地球環境","他の\n保険契約","通貨","為替換算率","輸出契約等元本","貨物","受渡条件","役務枝","発効条件の\n有無","輸出契約等\n発効日","告知事項の\n有無","仕向国","支払国","支払人","保証国","保証人","支配関係の\n有無","買契約\n相手国","船積国","売契約相手国","売契約相手方","船積No","船積修正削除フラグ","Ｆ／Ｓ\n予定日","Ｌ／Ｓ\n予定日","船積前保険対象額","船積後保険対象額","船積後付保率\n（非常）","決済修正削除フラグ１","決済方法１","決済支払保証\n１","ユーザンス\n月日指定１","ユーザンス\n期間１","決済予定日１","決済元本１","決済金利１","決済修正削除フラグ２","決済方法２","決済支払保証\n２","ユーザンス\n月日指定２","ユーザンス\n期間２","決済予定日２","決済元本２","決済金利２","決済修正削除フラグ３","決済方法３","決済支払保証\n３","ユーザンス\n月日指定３","ユーザンス\n期間３","決済予定日３","決済元本３","決済金利３","決済修正削除フラグ４","決済方法４","決済支払保証\n４","ユーザンス\n月日指定４","ユーザンス\n期間４","決済予定日４","決済元本４","決済金利４","決済修正削除フラグ５","決済方法５","決済支払保証\n５","ユーザンス\n月日指定５","ユーザンス\n期間５","決済予定日５","決済元本５","決済金利５","決済種別１","決済種別２","決済種別３","決済種別４","決済種別５","個別・包括区分","船積前\nてん補種別","船積後\nてん補種別","増加費用\nてん補種別","支払区分","徴収区分","内諾番号","確認管理番号","特殊契約\n－エスカレーションクローズ","特殊契約\n－円約款","特殊契約－\nキャッシュオプション","特殊契約\n－完成納期","特約商品－\nフルターン有無","特約商品－\nフルターン保険期間","特約商品\n－共同契約\nてん補範囲","特約商品－\nライセンス有無","特約商品－\nライセンス支払限度額","特約商品\n－支出費用\r\n有無","特約商品－\n支出費用保険期間","特約商品－\n支出費用保険対象額","技術等提供\n開始日","国内販売\n締結日","貨物引渡日","ｴﾋﾞﾃﾞﾝｽの有無","船主国","船積前付保率（非常）","船積前付保率（信用）","船積後付保率（信用）","増加費用保険対象額","増加費用\n付保率","予備1","決済起算方式１","決済予備１","決済起算方式２","決済予備２","決済起算方式３","決済予備３","決済起算方式４","決済予備４","決済起算方式５","決済予備５","受理本支店","受理日","受理番号","予備2","未使用項目"]
[null,"属性","属性","CHAR","CHAR","CHAR","CHAR","CHAR","CHAR","CHAR","CHAR","CHAR","CHAR","CHAR","CHAR","CHAR","CHAR","CHAR","CHAR","CHAR","CHAR","CHAR","CHAR","CHAR","CHAR","CHAR","CHAR","CHAR","NUM","NUM","CHAR","CHAR","CHAR","CHAR","CHAR","CHAR","CHAR","CHAR","CHAR","CHAR","CHAR","CHAR","CHAR","CHAR","CHAR","CHAR","CHAR","CHAR","CHAR","CHAR","NUM","NUM","NUM","CHAR","CHAR","CHAR","CHAR","NUM","CHAR","NUM","NUM","CHAR","CHAR","CHAR","CHAR","NUM","CHAR","NUM","NUM",null,"CHAR","CHAR","CHAR","NUM","CHAR","NUM","NUM",null,"CHAR","CHAR","CHAR","NUM","CHAR","NUM","NUM",null,"CHAR","CHAR","CHAR","NUM","CHAR","NUM","NUM","CHAR","CHAR","CHAR","CHAR","CHAR","CHAR","CHAR","CHAR","CHAR","CHAR","CHAR","CHAR","CHAR","CHAR","CHAR","CHAR","CHAR","CHAR","NUM","CHAR","CHAR","NUM","CHAR","NUM","NUM","CHAR","CHAR","CHAR","CHAR","CHAR","NUM","NUM","NUM","NUM","NUM","CHAR","CHAR","CHAR","CHAR","CHAR","CHAR","CHAR","CHAR","CHAR","CHAR","CHAR","CHAR","CHAR","CHAR","CHAR","NUM"]
[null,"記入桁数","記入桁数",4,1,2,9,2,6,2,2,9,9,9,6,6,2,6,6,2,2,6,25,15,1,1,1,3,10,15,6,1,1,1,6,1,3,3,7,3,7,1,3,3,3,7,2,1,6,6,15,15,4,1,2,2,1,3,6,15,15,1,2,2,1,3,6,15,15,null,2,2,1,3,6,15,15,null,2,2,1,3,6,15,15,null,2,2,1,3,6,15,15,1,1,1,1,1,1,1,1,1,1,1,12,8,1,1,1,1,1,3,1,1,15,1,3,15,6,6,6,1,3,3,3,3,15,3,33,1,4,1,4,1,4,1,4,1,4,2,6,5,318,3]
[null,"少数部桁数","少数部桁数",0,0,0,0,0,0,0,0,null,null,null,null,null,0,null,null,null,null,null,null,null,0,null,0,null,6,2,null,null,null,null,null,null,null,null,null,null,null,null,null,null,null,null,null,null,null,null,2,2,null,null,null,null,null,null,null,2,2,null,null,null,null,null,null,2,2,null,null,null,null,null,null,2,2,null,null,null,null,null,null,2,2,null,null,null,null,null,null,2,2,null,null,null,null,null,0,0,0,0,0,0,0,0,0,0,0,0,0,0,0,0,0,0,0,2,null,null,null,null,null,1,1,1,2,1]
[null,"入力必須","入力必須","*","*","*","*","*","*",null,null,null,null,null,null,"*","*","*",null,null,null,null,"*",null,null,null,null,"*",null,"*","*","*",null,null,null,null,"*","*","*",null,null,null,null,null,null,null,null,null,null,"*","*",null,"*",null,"*",null,null,null,null,null,null,null,null,null,null,null,null,null,null,null,null,null,null,null,null,null,null,null,null,null,null,null,null,null,null,null,null,null,null,null,null,null,null,null,null,null,null,null,"*","*","*",null,null,null,null,null,null,null,null,null,null,null,null,null,null,null,null,null,null,null,null,null,null,"*","*","*"]
[null,"入力例","入力例","\"2110\"固定","新規:\"1\"固定","本店",999999999,25,123456,"00","00",123456789,123456789,123456789,123456,250101,"輸出",250101,0,0,0,0,"1234567890123456789012345","123456789012345","なし",1,"なし","001",1234.123456,1234567890123.1201,123456,"ＦＯＢ","役務枝","なし","250101","なし",304,304,1234567,205,1234567,"なし",304,302,304,1234567,"\"01\"固定","追加:\"3\"固定",250101,250101,1234567890123.1201,1234567890123.1201,0.97499999999999998,"追加:\"3\"固定",10,10,"月指定",123,"250101",1234567890123.1201,1234567890123.1201,"追加:\"3\"固定",10,10,"月指定",123,"250101",1234567890123.1201,1234567890123.1201,"追加:\"3\"固定",10,10,"月指定",123,"250101",1234567890123.1201,1234567890123.1201,"追加:\"3\"固定",10,10,"月指定",123,"250101",1234567890123.1201,1234567890123.1201,"追加:\"3\"固定",10,10,"月指定",123,"250101",1234567890123.1201,1234567890123.1201,"ｷｬｯｼｭ:\"1\"固定","ｷｬｯｼｭ:\"1\"固定","ｷｬｯｼｭ:\"1\"固定","ｷｬｯｼｭ:\"1\"固定","ｷｬｯｼｭ:\"1\"固定","企総:\"4\"固定","総合:\"2\"固定","総合:\"2\"固定",null,"2年未満:\"1\"固定","一括:\"1\"固定",null,null,null,null,null,null,null,null,null,null,null,null,null,null,null,null,null,null,null,"80%固定","80%固定","90%固定",null,null,null,"E/S起算:\"1\"固定",null,"E/S起算:\"1\"固定",null,"E/S起算:\"1\"固定",null,"E/S起算:\"1\"固定",null,"E/S起算:\"1\"固定"]
[null,"入力桁数","記入桁数",4,1,"選択",9,2,6,2,2,9,9,9,6,6,"選択",6,6,"選択",2,6,25,15,"選択",1,"選択",3,10,15,6,"選択","選択","選択",6,"選択",3,3,7,3,7,"選択",3,3,3,7,2,1,6,6,15,15,4,1,"選択","選択","選択",3,6,15,15,1,"選択","選択","選択",3,6,15,15,1,"選択","選択","選択",3,6,15,15,1,"選択","選択","選択",3,6,15,15,1,"選択","選択","選択",3,6,15,15,1,1,1,1,1,1,1,1,1,1,1,12,8,1,1,1,1,1,3,1,1,15,1,3,15,6,6,6,1,3,3,3,3,15,3,33,1,4,1,4,1,4,1,4,1,4,2,6,5,318,3]
[null,{"$f":"ROW()-17","v":1},{"$f":"IF(COUNTA($I18:$J18,$N18:$R18,$W18:$Y18,$AA18:$AT18,$AW18:$BA18,$BC18:$BI18,$BK18:$BQ18,$BS18:$BY18,$CA18:$CG18,$CI18:$CO18)<>0,1,\"\")","v":""},{"$f":"IF($I18<>\"\",2110,\"\")","v":""},{"$f":"IF($I18<>\"\",1,\"\")","v":""},{"$f":"IF($I18<>\"\",$N$5,\"\")","v":""},{"$f":"IF($I18<>\"\",$N$6,\"\")","v":""},{"$f":"IF($I18<>\"\",$N$7,\"\")","v":""},null,null,null,{"$f":"IF($I18<>\"\",$N$8,\"\")","v":""},null,null,null,null,null,null,null,null,null,null,null,null,null,null,null,null,null,null,null,null,null,null,null,null,null,null,null,null,null,null,null,null,null,null,{"$f":"IF($I18<>\"\",\"01\",\"\")","v":""},{"$f":"IF($I18<>\"\",3,\"\")","v":""},null,null,null,null,null,{"$f":"IF($BC18<>\"\",\"3\",\"\")","v":""},null,null,null,null,null,null,null,{"$f":"IF($BK18<>\"\",\"3\",\"\")","v":""},null,null,null,null,null,null,null,{"$f":"IF($BS18<>\"\",\"3\",\"\")","v":""},null,null,null,null,null,null,null,{"$f":"IF($CA18<>\"\",\"3\",\"\")","v":""},null,null,null,null,null,null,null,{"$f":"IF($CI18<>\"\",\"3\",\"\")","v":""},null,null,null,null,null,null,null,{"$f":"IF(AND(BC18<>\"\",BC18<>\"60\"),1,\"\")","v":""},{"$f":"IF(AND(BK18<>\"\",BK18<>\"60\"),1,\"\")","v":""},{"$f":"IF(AND(BS18<>\"\",BS18<>\"60\"),1,\"\")","v":""},{"$f":"IF(AND(CA18<>\"\",CA18<>\"60\"),1,\"\")","v":""},{"$f":"IF(AND(CI18<>\"\",CI18<>\"60\"),1,\"\")","v":""},{"$f":"IF($I18<>\"\",4,\"\")","v":""},{"$f":"IF($I18<>\"\",2,\"\")","v":""},{"$f":"IF($I18<>\"\",2,\"\")","v":""},null,{"$f":"IF($I18<>\"\",1,\"\")","v":""},{"$f":"IF($I18<>\"\",1,\"\")","v":""},null,null,null,null,null,null,null,null,null,null,null,null,null,null,null,null,null,null,null,{"$f":"IF($I18<>\"\",\"800\",\"\")","v":""},{"$f":"IF($I18<>\"\",\"800\",\"\")","v":""},{"$f":"IF($I18<>\"\",\"900\",\"\")","v":""},null,null,{"$f":"IF(BA18=\"97.5%\",\" 975\",IF(BA18=\"100%\",\"1000\",\"\"))","v":""},{"$f":"IF(AND(BC18<>\"\",BC18<>\"60\"),1,\"\")","v":""},null,{"$f":"IF(AND(BK18<>\"\",BK18<>\"60\"),1,\"\")","v":""},null,{"$f":"IF(AND(BS18<>\"\",BS18<>\"60\"),1,\"\")","v":""},null,{"$f":"IF(AND(CA18<>\"\",CA18<>\"60\"),1,\"\")","v":""},null,{"$f":"IF(AND(CI18<>\"\",CI18<>\"60\"),1,\"\")","v":""}]
[null,{"$f":"ROW()-17","v":2},{"$f":"IF(COUNTA($I19:$J19,$N19:$R19,$W19:$Y19,$AA19:$AT19,$AW19:$BA19,$BC19:$BI19,$BK19:$BQ19,$BS19:$BY19,$CA19:$CG19,$CI19:$CO19)<>0,1,\"\")","v":""},{"$f":"IF(C19<>\"\",2110,\"\")","v":""},{"$f":"IF($I19<>\"\",1,\"\")","v":""},{"$f":"IF($I19<>\"\",$N$5,\"\")","v":""},{"$f":"IF($I19<>\"\",$N$6,\"\")","v":""},{"$f":"IF($I19<>\"\",$N$7,\"\")","v":""},null,null,null,{"$f":"IF($I19<>\"\",$N$8,\"\")","v":""},null,null,null,null,null,null,null,null,null,null,null,null,null,null,null,null,null,null,null,null,null,null,null,null,null,null,null,null,null,null,null,null,null,null,"","",null,null,null,null,null,{"$f":"IF($BC19<>\"\",\"3\",\"\")","v":""},null,null,null,null,null,null,null,{"$f":"IF($BK19<>\"\",\"3\",\"\")","v":""},null,null,null,null,null,null,null,{"$f":"IF($BS19<>\"\",\"3\",\"\")","v":""},null,null,null,null,null,null,null,{"$f":"IF($CA19<>\"\",\"3\",\"\")","v":""},null,null,null,null,null,null,null,{"$f":"IF($CI19<>\"\",\"3\",\"\")","v":""},null,null,null,null,null,null,null,"","","","","",{"$f":"IF($I19<>\"\",4,\"\")","v":""},{"$f":"IF($I19<>\"\",2,\"\")","v":""},"",null,{"$f":"IF($I19<>\"\",1,\"\")","v":""},"",null,null,null,null,null,null,null,null,null,null,null,null,null,null,null,null,null,null,null,{"$f":"IF($I19<>\"\",\"800\",\"\")","v":""},"",{"$f":"IF($I19<>\"\",\"900\",\"\")","v":""},null,null,{"$f":"IF(BA19=\"97.5%\",\" 975\",IF(BA19=\"100%\",\"1000\",\"\"))","v":""},"",null,"",null,"",null,"",null,""]
[null,3,"","","","","","",null,null,null,"",null,null,null,null,null,null,null,null,null,null,null,null,null,null,null,null,null,null,null,null,null,null,null,null,null,null,null,null,null,null,null,null,null,null,"","",null,null,null,null,null,{"$f":"IF($BC20<>\"\",\"3\",\"\")","v":""},null,null,null,null,null,null,null,"",null,null,null,null,null,null,null,"",null,null,null,null,null,null,null,"",null,null,null,null,null,null,null,"",null,null,null,null,null,null,null,{"$f":"IF(AND(BC20<>\"\",BC20<>\"60\"),1,\"\")","v":""},{"$f":"IF(AND(BK20<>\"\",BK20<>\"60\"),1,\"\")","v":""},{"$f":"IF(AND(BS20<>\"\",BS20<>\"60\"),1,\"\")","v":""},{"$f":"IF(AND(CA20<>\"\",CA20<>\"60\"),1,\"\")","v":""},{"$f":"IF(AND(CI20<>\"\",CI20<>\"60\"),1,\"\")","v":""},"","","",null,"","",null,null,null,null,null,null,null,null,null,null,null,null,null,null,null,null,null,null,null,"","","",null,null,{"$f":"IF(BA20=\"97.5%\",\" 975\",IF(BA20=\"100%\",\"1000\",\"\"))","v":""},{"$f":"IF(AND(BC20<>\"\",BC20<>\"60\"),1,\"\")","v":""},null,{"$f":"IF(AND(BK20<>\"\",BK20<>\"60\"),1,\"\")","v":""},null,{"$f":"IF(AND(BS20<>\"\",BS20<>\"60\"),1,\"\")","v":""},null,{"$f":"IF(AND(CA20<>\"\",CA20<>\"60\"),1,\"\")","v":""},null,{"$f":"IF(AND(CI20<>\"\",CI20<>\"60\"),1,\"\")","v":""}]
[null,4,"","","","","","",null,null,null,{"$f":"IF($I21<>\"\",$N$8,\"\")","v":""},null,null,null,null,null,null,null,null,null,null,null,null,null,null,null,null,null,null,null,null,null,null,null,null,null,null,null,null,null,null,null,null,null,null,"","",null,null,null,null,null,{"$f":"IF($BC21<>\"\",\"3\",\"\")","v":""},null,null,null,null,null,null,null,"",null,null,null,null,null,null,null,"",null,null,null,null,null,null,null,"",null,null,null,null,null,null,null,"",null,null,null,null,null,null,null,"","","","","","","","",null,"","",null,null,null,null,null,null,null,null,null,null,null,null,null,null,null,null,null,null,null,"","","",null,null,"","",null,"",null,"",null,"",null,""]
[null,5,"","","","","","",null,null,null,"",null,null,null,null,null,null,null,null,null,null,null,null,null,null,null,null,null,null,null,null,null,null,null,null,null,null,null,null,null,null,null,null,null,null,"","",null,null,null,null,null,"",null,null,null,null,null,null,null,{"$f":"IF($BK22<>\"\",\"3\",\"\")","v":""},null,null,null,null,null,null,null,{"$f":"IF($BS22<>\"\",\"3\",\"\")","v":""},null,null,null,null,null,null,null,{"$f":"IF($CA22<>\"\",\"3\",\"\")","v":""},null,null,null,null,null,null,null,"",null,null,null,null,null,null,null,"","","","","","","","",null,"","",null,null,null,null,null,null,null,null,null,null,null,null,null,null,null,null,null,null,null,"","","",null,null,"","",null,"",null,"",null,"",null,""]
[null,6,"","","","","","",null,null,null,"",null,null,null,null,null,null,null,null,null,null,null,null,null,null,null,null,null,null,null,null,null,null,null,null,null,null,null,null,null,null,null,null,null,null,"","",null,null,null,null,null,"",null,null,null,null,null,null,null,"",null,null,null,null,null,null,null,"",null,null,null,null,null,null,null,"",null,null,null,null,null,null,null,{"$f":"IF($CI23<>\"\",\"3\",\"\")","v":""},null,null,null,null,null,null,null,"","","","","","","","",null,"","",null,null,null,null,null,null,null,null,null,null,null,null,null,null,null,null,null,null,null,"","","",null,null,"","",null,"",null,"",null,"",null,""]
[null,7,"","","","","","",null,null,null,"",null,null,null,null,null,null,null,null,null,null,null,null,null,null,null,null,null,null,null,null,null,null,null,null,null,null,null,null,null,null,null,null,null,null,"","",null,null,null,null,null,"",null,null,null,null,null,null,null,"",null,null,null,null,null,null,null,"",null,null,null,null,null,null,null,"",null,null,null,null,null,null,null,"",null,null,null,null,null,null,null,"","","","","","","","",null,"","",null,null,null,null,null,null,null,null,null,null,null,null,null,null,null,null,null,null,null,"","","",null,null,"","",null,"",null,"",null,"",null,""]
[null,8,"","","","","","",null,null,null,"",null,null,null,null,null,null,null,null,null,null,null,null,null,null,null,null,null,null,null,null,null,null,null,null,null,null,null,null,null,null,null,null,null,null,"","",null,null,null,null,null,"",null,null,null,null,null,null,null,"",null,null,null,null,null,null,null,"",null,null,null,null,null,null,null,"",null,null,null,null,null,null,null,"",null,null,null,null,null,null,null,"","","","","","","","",null,"","",null,null,null,null,null,null,null,null,null,null,null,null,null,null,null,null,null,null,null,"","","",null,null,"","",null,"",null,"",null,"",null,""]
[null,9,"","","","","","",null,null,null,"",null,null,null,null,null,null,null,null,null,null,null,null,null,null,null,null,null,null,null,null,null,null,null,null,null,null,null,null,null,null,null,null,null,null,"","",null,null,null,null,null,"",null,null,null,null,null,null,null,"",null,null,null,null,null,null,null,"",null,null,null,null,null,null,null,"",null,null,null,null,null,null,null,"",null,null,null,null,null,null,null,"","","","","","","","",null,"","",null,null,null,null,null,null,null,null,null,null,null,null,null,null,null,null,null,null,null,"","","",null,null,"","",null,"",null,"",null,"",null,""]
[null,10,"","","","","","",null,null,null,"",null,null,null,null,null,null,null,null,null,null,null,null,null,null,null,null,null,null,null,null,null,null,null,null,null,null,null,null,null,null,null,null,null,null,"","",null,null,null,null,null,"",null,null,null,null,null,null,null,"",null,null,null,null,null,null,null,"",null,null,null,null,null,null,null,"",null,null,null,null,null,null,null,"",null,null,null,null,null,null,null,"","","","","","","","",null,"","",null,null,null,null,null,null,null,null,null,null,null,null,null,null,null,null,null,null,null,"","","",null,null,"","",null,"",null,"",null,"",null,""]
[null,11,"","","","","","",null,null,null,"",null,null,null,null,null,null,null,null,null,null,null,null,null,null,null,null,null,null,null,null,null,null,null,null,null,null,null,null,null,null,null,null,null,null,"","",null,null,null,null,null,"",null,null,null,null,null,null,null,"",null,null,null,null,null,null,null,"",null,null,null,null,null,null,null,"",null,null,null,null,null,null,null,"",null,null,null,null,null,null,null,"","","","","","","","",null,"","",null,null,null,null,null,null,null,null,null,null,null,null,null,null,null,null,null,null,null,"","","",null,null,"","",null,"",null,"",null,"",null,""]
[null,12,"","","","","","",null,null,null,"",null,null,null,null,null,null,null,null,null,null,null,null,null,null,null,null,null,null,null,null,null,null,null,null,null,null,null,null,null,null,null,null,null,null,"","",null,null,null,null,null,"",null,null,null,null,null,null,null,"",null,null,null,null,null,null,null,"",null,null,null,null,null,null,null,"",null,null,null,null,null,null,null,"",null,null,null,null,null,null,null,"","","","","","","","",null,"","",null,null,null,null,null,null,null,null,null,null,null,null,null,null,null,null,null,null,null,"","","",null,null,"","",null,"",null,"",null,"",null,""]
[null,13,"","","","","","",null,null,null,"",null,null,null,null,null,null,null,null,null,null,null,null,null,null,null,null,null,null,null,null,null,null,null,null,null,null,null,null,null,null,null,null,null,null,"","",null,null,null,null,null,{"$f":"IF($BC30<>\"\",\"3\",\"\")","v":""},null,null,null,null,null,null,null,"",null,null,null,null,null,null,null,"",null,null,null,null,null,null,null,"",null,null,null,null,null,null,null,"",null,null,null,null,null,null,null,"","","","","","","","",null,"","",null,null,null,null,null,null,null,null,null,null,null,null,null,null,null,null,null,null,null,"","","",null,null,"","",null,"",null,"",null,"",null,""]
[null,14,"","","","","","",null,null,null,"",null,null,null,null,null,null,null,null,null,null,null,null,null,null,null,null,null,null,null,null,null,null,null,null,null,null,null,null,null,null,null,null,null,null,"","",null,null,null,null,null,"",null,null,null,null,null,null,null,"",null,null,null,null,null,null,null,"",null,null,null,null,null,null,null,"",null,null,null,null,null,null,null,"",null,null,null,null,null,null,null,"","","","","","","","",null,"","",null,null,null,null,null,null,null,null,null,null,null,null,null,null,null,null,null,null,null,"","","",null,null,"","",null,"",null,"",null,"",null,""]
[null,15,"","","","","","",null,null,null,"",null,null,null,null,null,null,null,null,null,null,null,null,null,null,null,null,null,null,null,null,null,null,null,null,null,null,null,null,null,null,null,null,null,null,"","",null,null,null,null,null,"",null,null,null,null,null,null,null,"",null,null,null,null,null,null,null,"",null,null,null,null,null,null,null,"",null,null,null,null,null,null,null,"",null,null,null,null,null,null,null,"","","","","","","","",null,"","",null,null,null,null,null,null,null,null,null,null,null,null,null,null,null,null,null,null,null,"","","",null,null,"","",null,"",null,"",null,"",null,""]
[null,16,"","","","","","",null,null,null,"",null,null,null,null,null,null,null,null,null,null,null,null,null,null,null,null,null,null,null,null,null,null,null,null,null,null,null,null,null,null,null,null,null,null,"","",null,null,null,null,null,"",null,null,null,null,null,null,null,"",null,null,null,null,null,null,null,"",null,null,null,null,null,null,null,"",null,null,null,null,null,null,null,"",null,null,null,null,null,null,null,"","","","","","","","",null,"","",null,null,null,null,null,null,null,null,null,null,null,null,null,null,null,null,null,null,null,"","","",null,null,"","",null,"",null,"",null,"",null,""]
[null,17,"","","","","","",null,null,null,"",null,null,null,null,null,null,null,null,null,null,null,null,null,null,null,null,null,null,null,null,null,null,null,null,null,null,null,null,null,null,null,null,null,null,"","",null,null,null,null,null,"",null,null,null,null,null,null,null,"",null,null,null,null,null,null,null,"",null,null,null,null,null,null,null,"",null,null,null,null,null,null,null,"",null,null,null,null,null,null,null,"","","","","","","","",null,"","",null,null,null,null,null,null,null,null,null,null,null,null,null,null,null,null,null,null,null,"","","",null,null,"","",null,"",null,"",null,"",null,""]
[null,18,"","","","","","",null,null,null,"",null,null,null,null,null,null,null,null,null,null,null,null,null,null,null,null,null,null,null,null,null,null,null,null,null,null,null,null,null,null,null,null,null,null,"","",null,null,null,null,null,"",null,null,null,null,null,null,null,"",null,null,null,null,null,null,null,"",null,null,null,null,null,null,null,"",null,null,null,null,null,null,null,"",null,null,null,null,null,null,null,"","","","","","","","",null,"","",null,null,null,null,null,null,null,null,null,null,null,null,null,null,null,null,null,null,null,"","","",null,null,"","",null,"",null,"",null,"",null,""]
[null,19,"","","","","","",null,null,null,"",null,null,null,null,null,null,null,null,null,null,null,null,null,null,null,null,null,null,null,null,null,null,null,null,null,null,null,null,null,null,null,null,null,null,"","",null,null,null,null,null,"",null,null,null,null,null,null,null,"",null,null,null,null,null,null,null,"",null,null,null,null,null,null,null,"",null,null,null,null,null,null,null,"",null,null,null,null,null,null,null,"","","","","","","","",null,"","",null,null,null,null,null,null,null,null,null,null,null,null,null,null,null,null,null,null,null,"","","",null,null,"","",null,"",null,"",null,"",null,""]
[null,20,"","","","","","",null,null,null,"",null,null,null,null,null,null,null,null,null,null,null,null,null,null,null,null,null,null,null,null,null,null,null,null,null,null,null,null,null,null,null,null,null,null,"","",null,null,null,null,null,"",null,null,null,null,null,null,null,"",null,null,null,null,null,null,null,"",null,null,null,null,null,null,null,"",null,null,null,null,null,null,null,"",null,null,null,null,null,null,null,"","","","","","","","",null,"","",null,null,null,null,null,null,null,null,null,null,null,null,null,null,null,null,null,null,null,"","","",null,null,"","",null,"",null,"",null,"",null,""]
[null,21,"","","","","","",null,null,null,"",null,null,null,null,null,null,null,null,null,null,null,null,null,null,null,null,null,null,null,null,null,null,null,null,null,null,null,null,null,null,null,null,null,null,"","",null,null,null,null,null,"",null,null,null,null,null,null,null,"",null,null,null,null,null,null,null,"",null,null,null,null,null,null,null,"",null,null,null,null,null,null,null,"",null,null,null,null,null,null,null,"","","","","","","","",null,"","",null,null,null,null,null,null,null,null,null,null,null,null,null,null,null,null,null,null,null,"","","",null,null,"","",null,"",null,"",null,"",null,""]
[null,22,"","","","","","",null,null,null,"",null,null,null,null,null,null,null,null,null,null,null,null,null,null,null,null,null,null,null,null,null,null,null,null,null,null,null,null,null,null,null,null,null,null,"","",null,null,null,null,null,"",null,null,null,null,null,null,null,"",null,null,null,null,null,null,null,"",null,null,null,null,null,null,null,"",null,null,null,null,null,null,null,"",null,null,null,null,null,null,null,"","","","","","","","",null,"","",null,null,null,null,null,null,null,null,null,null,null,null,null,null,null,null,null,null,null,"","","",null,null,"","",null,"",null,"",null,"",null,""]
[null,23,"","","","","","",null,null,null,"",null,null,null,null,null,null,null,null,null,null,null,null,null,null,null,null,null,null,null,null,null,null,null,null,null,null,null,null,null,null,null,null,null,null,"","",null,null,null,null,null,"",null,null,null,null,null,null,null,"",null,null,null,null,null,null,null,"",null,null,null,null,null,null,null,"",null,null,null,null,null,null,null,"",null,null,null,null,null,null,null,"","","","","","","","",null,"","",null,null,null,null,null,null,null,null,null,null,null,null,null,null,null,null,null,null,null,"","","",null,null,"","",null,"",null,"",null,"",null,""]
[null,24,"","","","","","",null,null,null,"",null,null,null,null,null,null,null,null,null,null,null,null,null,null,null,null,null,null,null,null,null,null,null,null,null,null,null,null,null,null,null,null,null,null,"","",null,null,null,null,null,"",null,null,null,null,null,null,null,"",null,null,null,null,null,null,null,"",null,null,null,null,null,null,null,"",null,null,null,null,null,null,null,"",null,null,null,null,null,null,null,"","","","","","","","",null,"","",null,null,null,null,null,null,null,null,null,null,null,null,null,null,null,null,null,null,null,"","","",null,null,"","",null,"",null,"",null,"",null,""]
[null,25,"","","","","","",null,null,null,"",null,null,null,null,null,null,null,null,null,null,null,null,null,null,null,null,null,null,null,null,null,null,null,null,null,null,null,null,null,null,null,null,null,null,"","",null,null,null,null,null,"",null,null,null,null,null,null,null,"",null,null,null,null,null,null,null,"",null,null,null,null,null,null,null,"",null,null,null,null,null,null,null,"",null,null,null,null,null,null,null,"","","","","","","","",null,"","",null,null,null,null,null,null,null,null,null,null,null,null,null,null,null,null,null,null,null,"","","",null,null,"","",null,"",null,"",null,"",null,""]
[null,26,"","","","","","",null,null,null,"",null,null,null,null,null,null,null,null,null,null,null,null,null,null,null,null,null,null,null,null,null,null,null,null,null,null,null,null,null,null,null,null,null,null,"","",null,null,null,null,null,"",null,null,null,null,null,null,null,"",null,null,null,null,null,null,null,"",null,null,null,null,null,null,null,"",null,null,null,null,null,null,null,"",null,null,null,null,null,null,null,"","","","","","","","",null,"","",null,null,null,null,null,null,null,null,null,null,null,null,null,null,null,null,null,null,null,"","","",null,null,"","",null,"",null,"",null,"",null,""]
[null,27,"","","","","","",null,null,null,"",null,null,null,null,null,null,null,null,null,null,null,null,null,null,null,null,null,null,null,null,null,null,null,null,null,null,null,null,null,null,null,null,null,null,"","",null,null,null,null,null,"",null,null,null,null,null,null,null,"",null,null,null,null,null,null,null,"",null,null,null,null,null,null,null,"",null,null,null,null,null,null,null,"",null,null,null,null,null,null,null,"","","","","","","","",null,"","",null,null,null,null,null,null,null,null,null,null,null,null,null,null,null,null,null,null,null,"","","",null,null,"","",null,"",null,"",null,"",null,""]
[null,28,"","","","","","",null,null,null,"",null,null,null,null,null,null,null,null,null,null,null,null,null,null,null,null,null,null,null,null,null,null,null,null,null,null,null,null,null,null,null,null,null,null,"","",null,null,null,null,null,"",null,null,null,null,null,null,null,"",null,null,null,null,null,null,null,"",null,null,null,null,null,null,null,"",null,null,null,null,null,null,null,"",null,null,null,null,null,null,null,"","","","","","","","",null,"","",null,null,null,null,null,null,null,null,null,null,null,null,null,null,null,null,null,null,null,"","","",null,null,"","",null,"",null,"",null,"",null,""]
[null,29,"","","","","","",null,null,null,"",null,null,null,null,null,null,null,null,null,null,null,null,null,null,null,null,null,null,null,null,null,null,null,null,null,null,null,null,null,null,null,null,null,null,"","",null,null,null,null,null,"",null,null,null,null,null,null,null,"",null,null,null,null,null,null,null,"",null,null,null,null,null,null,null,"",null,null,null,null,null,null,null,"",null,null,null,null,null,null,null,"","","","","","","","",null,"","",null,null,null,null,null,null,null,null,null,null,null,null,null,null,null,null,null,null,null,"","","",null,null,"","",null,"",null,"",null,"",null,""]
[null,30,"","","","","","",null,null,null,"",null,null,null,null,null,null,null,null,null,null,null,null,null,null,null,null,null,null,null,null,null,null,null,null,null,null,null,null,null,null,null,null,null,null,"","",null,null,null,null,null,"",null,null,null,null,null,null,null,"",null,null,null,null,null,null,null,"",null,null,null,null,null,null,null,"",null,null,null,null,null,null,null,"",null,null,null,null,null,null,null,"","","","","","","","",null,"","",null,null,null,null,null,null,null,null,null,null,null,null,null,null,null,null,null,null,null,"","","",null,null,"","",null,"",null,"",null,"",null,""]
[null,31,"","","","","","",null,null,null,"",null,null,null,null,null,null,null,null,null,null,null,null,null,null,null,null,null,null,null,null,null,null,null,null,null,null,null,null,null,null,null,null,null,null,"","",null,null,null,null,null,"",null,null,null,null,null,null,null,"",null,null,null,null,null,null,null,"",null,null,null,null,null,null,null,"",null,null,null,null,null,null,null,"",null,null,null,null,null,null,null,"","","","","","","","",null,"","",null,null,null,null,null,null,null,null,null,null,null,null,null,null,null,null,null,null,null,"","","",null,null,"","",null,"",null,"",null,"",null,""]
[null,32,"","","","","","",null,null,null,"",null,null,null,null,null,null,null,null,null,null,null,null,null,null,null,null,null,null,null,null,null,null,null,null,null,null,null,null,null,null,null,null,null,null,"","",null,null,null,null,null,"",null,null,null,null,null,null,null,"",null,null,null,null,null,null,null,"",null,null,null,null,null,null,null,"",null,null,null,null,null,null,null,"",null,null,null,null,null,null,null,"","","","","","","","",null,"","",null,null,null,null,null,null,null,null,null,null,null,null,null,null,null,null,null,null,null,"","","",null,null,"","",null,"",null,"",null,"",null,""]
[null,33,"","","","","","",null,null,null,"",null,null,null,null,null,null,null,null,null,null,null,null,null,null,null,null,null,null,null,null,null,null,null,null,null,null,null,null,null,null,null,null,null,null,"","",null,null,null,null,null,"",null,null,null,null,null,null,null,"",null,null,null,null,null,null,null,"",null,null,null,null,null,null,null,"",null,null,null,null,null,null,null,"",null,null,null,null,null,null,null,"","","","","","","","",null,"","",null,null,null,null,null,null,null,null,null,null,null,null,null,null,null,null,null,null,null,"","","",null,null,"","",null,"",null,"",null,"",null,""]
[null,34,"","","","","","",null,null,null,"",null,null,null,null,null,null,null,null,null,null,null,null,null,null,null,null,null,null,null,null,null,null,null,null,null,null,null,null,null,null,null,null,null,null,"","",null,null,null,null,null,"",null,null,null,null,null,null,null,"",null,null,null,null,null,null,null,"",null,null,null,null,null,null,null,"",null,null,null,null,null,null,null,"",null,null,null,null,null,null,null,"","","","","","",{"$f":"IF($I51<>\"\",2,\"\")","v":""},"",null,{"$f":"IF($I51<>\"\",1,\"\")","v":""},"",null,null,null,null,null,null,null,null,null,null,null,null,null,null,null,null,null,null,null,{"$f":"IF($I51<>\"\",\"800\",\"\")","v":""},"","",null,null,"","",null,"",null,"",null,"",null,""]
[null,35,"","","","","","",null,null,null,"",null,null,null,null,null,null,null,null,null,null,null,null,null,null,null,null,null,null,null,null,null,null,null,null,null,null,null,null,null,null,null,null,null,null,"","",null,null,null,null,null,"",null,null,null,null,null,null,null,"",null,null,null,null,null,null,null,"",null,null,null,null,null,null,null,"",null,null,null,null,null,null,null,"",null,null,null,null,null,null,null,"","","","","","","","",null,"","",null,null,null,null,null,null,null,null,null,null,null,null,null,null,null,null,null,null,null,"","","",null,null,"","",null,"",null,"",null,"",null,""]
[null,36,"","","","","","",null,null,null,"",null,null,null,null,null,null,null,null,null,null,null,null,null,null,null,null,null,null,null,null,null,null,null,null,null,null,null,null,null,null,null,null,null,null,"","",null,null,null,null,null,"",null,null,null,null,null,null,null,"",null,null,null,null,null,null,null,"",null,null,null,null,null,null,null,"",null,null,null,null,null,null,null,"",null,null,null,null,null,null,null,"","","","","","","","",null,"","",null,null,null,null,null,null,null,null,null,null,null,null,null,null,null,null,null,null,null,"","","",null,null,"","",null,"",null,"",null,"",null,""]
[null,37,"","","","","","",null,null,null,"",null,null,null,null,null,null,null,null,null,null,null,null,null,null,null,null,null,null,null,null,null,null,null,null,null,null,null,null,null,null,null,null,null,null,"","",null,null,null,null,null,"",null,null,null,null,null,null,null,"",null,null,null,null,null,null,null,"",null,null,null,null,null,null,null,"",null,null,null,null,null,null,null,"",null,null,null,null,null,null,null,"","","","","","","","",null,"","",null,null,null,null,null,null,null,null,null,null,null,null,null,null,null,null,null,null,null,"","","",null,null,"","",null,"",null,"",null,"",null,""]
[null,38,"","","","","","",null,null,null,"",null,null,null,null,null,null,null,null,null,null,null,null,null,null,null,null,null,null,null,null,null,null,null,null,null,null,null,null,null,null,null,null,null,null,"","",null,null,null,null,null,"",null,null,null,null,null,null,null,"",null,null,null,null,null,null,null,"",null,null,null,null,null,null,null,"",null,null,null,null,null,null,null,"",null,null,null,null,null,null,null,"","","","","","","","",null,"","",null,null,null,null,null,null,null,null,null,null,null,null,null,null,null,null,null,null,null,"","","",null,null,"","",null,"",null,"",null,"",null,""]
[null,39,"","","","","","",null,null,null,"",null,null,null,null,null,null,null,null,null,null,null,null,null,null,null,null,null,null,null,null,null,null,null,null,null,null,null,null,null,null,null,null,null,null,"","",null,null,null,null,null,"",null,null,null,null,null,null,null,"",null,null,null,null,null,null,null,"",null,null,null,null,null,null,null,"",null,null,null,null,null,null,null,"",null,null,null,null,null,null,null,"","","","","","","","",null,"","",null,null,null,null,null,null,null,null,null,null,null,null,null,null,null,null,null,null,null,"","","",null,null,"","",null,"",null,"",null,"",null,""]
[null,40,"","","","","","",null,null,null,"",null,null,null,null,null,null,null,null,null,null,null,null,null,null,null,null,null,null,null,null,null,null,null,null,null,null,null,null,null,null,null,null,null,null,"","",null,null,null,null,null,"",null,null,null,null,null,null,null,"",null,null,null,null,null,null,null,"",null,null,null,null,null,null,null,"",null,null,null,null,null,null,null,"",null,null,null,null,null,null,null,"","","","","","","","",null,"","",null,null,null,null,null,null,null,null,null,null,null,null,null,null,null,null,null,null,null,"","","",null,null,"","",null,"",null,"",null,"",null,""]
[null,41,"","","","","","",null,null,null,"",null,null,null,null,null,null,null,null,null,null,null,null,null,null,null,null,null,null,null,null,null,null,null,null,null,null,null,null,null,null,null,null,null,null,"","",null,null,null,null,null,"",null,null,null,null,null,null,null,"",null,null,null,null,null,null,null,"",null,null,null,null,null,null,null,"",null,null,null,null,null,null,null,"",null,null,null,null,null,null,null,"","","","","","","","",null,"","",null,null,null,null,null,null,null,null,null,null,null,null,null,null,null,null,null,null,null,"","","",null,null,"","",null,"",null,"",null,"",null,""]
[null,42,"","","","","","",null,null,null,"",null,null,null,null,null,null,null,null,null,null,null,null,null,null,null,null,null,null,null,null,null,null,null,null,null,null,null,null,null,null,null,null,null,null,"","",null,null,null,null,null,"",null,null,null,null,null,null,null,"",null,null,null,null,null,null,null,"",null,null,null,null,null,null,null,"",null,null,null,null,null,null,null,"",null,null,null,null,null,null,null,"","","","","","","","",null,"","",null,null,null,null,null,null,null,null,null,null,null,null,null,null,null,null,null,null,null,"","","",null,null,"","",null,"",null,"",null,"",null,""]
[null,43,"","","","","","",null,null,null,"",null,null,null,null,null,null,null,null,null,null,null,null,null,null,null,null,null,null,null,null,null,null,null,null,null,null,null,null,null,null,null,null,null,null,"","",null,null,null,null,null,"",null,null,null,null,null,null,null,"",null,null,null,null,null,null,null,"",null,null,null,null,null,null,null,"",null,null,null,null,null,null,null,"",null,null,null,null,null,null,null,"","","","","","","","",null,"","",null,null,null,null,null,null,null,null,null,null,null,null,null,null,null,null,null,null,null,"","","",null,null,"","",null,"",null,"",null,"",null,""]
[null,44,"","","","","","",null,null,null,"",null,null,null,null,null,null,null,null,null,null,null,null,null,null,null,null,null,null,null,null,null,null,null,null,null,null,null,null,null,null,null,null,null,null,"","",null,null,null,null,null,"",null,null,null,null,null,null,null,"",null,null,null,null,null,null,null,"",null,null,null,null,null,null,null,"",null,null,null,null,null,null,null,"",null,null,null,null,null,null,null,"","","","","","","","",null,"","",null,null,null,null,null,null,null,null,null,null,null,null,null,null,null,null,null,null,null,"","","",null,null,"","",null,"",null,"",null,"",null,""]
[null,45,"","","","","","",null,null,null,"",null,null,null,null,null,null,null,null,null,null,null,null,null,null,null,null,null,null,null,null,null,null,null,null,null,null,null,null,null,null,null,null,null,null,"","",null,null,null,null,null,"",null,null,null,null,null,null,null,"",null,null,null,null,null,null,null,"",null,null,null,null,null,null,null,"",null,null,null,null,null,null,null,"",null,null,null,null,null,null,null,"","","","","","","","",null,"","",null,null,null,null,null,null,null,null,null,null,null,null,null,null,null,null,null,null,null,"","","",null,null,"","",null,"",null,"",null,"",null,""]
[null,46,"","","","","","",null,null,null,"",null,null,null,null,null,null,null,null,null,null,null,null,null,null,null,null,null,null,null,null,null,null,null,null,null,null,null,null,null,null,null,null,null,null,"","",null,null,null,null,null,"",null,null,null,null,null,null,null,"",null,null,null,null,null,null,null,"",null,null,null,null,null,null,null,"",null,null,null,null,null,null,null,"",null,null,null,null,null,null,null,"","","","","","","","",null,"","",null,null,null,null,null,null,null,null,null,null,null,null,null,null,null,null,null,null,null,"","","",null,null,"","",null,"",null,"",null,"",null,""]
[null,47,"","","","","","",null,null,null,"",null,null,null,null,null,null,null,null,null,null,null,null,null,null,null,null,null,null,null,null,null,null,null,null,null,null,null,null,null,null,null,null,null,null,"","",null,null,null,null,null,"",null,null,null,null,null,null,null,"",null,null,null,null,null,null,null,"",null,null,null,null,null,null,null,"",null,null,null,null,null,null,null,"",null,null,null,null,null,null,null,"","","","","","","","",null,"","",null,null,null,null,null,null,null,null,null,null,null,null,null,null,null,null,null,null,null,"","","",null,null,"","",null,"",null,"",null,"",null,""]
[null,48,"","","","","","",null,null,null,"",null,null,null,null,null,null,null,null,null,null,null,null,null,null,null,null,null,null,null,null,null,null,null,null,null,null,null,null,null,null,null,null,null,null,"","",null,null,null,null,null,"",null,null,null,null,null,null,null,"",null,null,null,null,null,null,null,"",null,null,null,null,null,null,null,"",null,null,null,null,null,null,null,"",null,null,null,null,null,null,null,"","","","","","","","",null,"","",null,null,null,null,null,null,null,null,null,null,null,null,null,null,null,null,null,null,null,"","","",null,null,"","",null,"",null,"",null,"",null,""]
[null,49,"","","","","","",null,null,null,"",null,null,null,null,null,null,null,null,null,null,null,null,null,null,null,null,null,null,null,null,null,null,null,null,null,null,null,null,null,null,null,null,null,null,"","",null,null,null,null,null,"",null,null,null,null,null,null,null,"",null,null,null,null,null,null,null,"",null,null,null,null,null,null,null,"",null,null,null,null,null,null,null,"",null,null,null,null,null,null,null,"","","","","","","","",null,"","",null,null,null,null,null,null,null,null,null,null,null,null,null,null,null,null,null,null,null,"","","",null,null,"","",null,"",null,"",null,"",null,""]
[null,50,"","","","","","",null,null,null,"",null,null,null,null,null,null,null,null,null,null,null,null,null,null,null,null,null,null,null,null,null,null,null,null,null,null,null,null,null,null,null,null,null,null,"","",null,null,null,null,null,"",null,null,null,null,null,null,null,"",null,null,null,null,null,null,null,"",null,null,null,null,null,null,null,"",null,null,null,null,null,null,null,"",null,null,null,null,null,null,null,"","","","","","","","",null,"","",null,null,null,null,null,null,null,null,null,null,null,null,null,null,null,null,null,null,null,"","","",null,null,"","",null,"",null,"",null,"",null,""]
[null,51,"","","","","","",null,null,null,"",null,null,null,null,null,null,null,null,null,null,null,null,null,null,null,null,null,null,null,null,null,null,null,null,null,null,null,null,null,null,null,null,null,null,"","",null,null,null,null,null,"",null,null,null,null,null,null,null,"",null,null,null,null,null,null,null,"",null,null,null,null,null,null,null,"",null,null,null,null,null,null,null,"",null,null,null,null,null,null,null,"","","","","","","","",null,"","",null,null,null,null,null,null,null,null,null,null,null,null,null,null,null,null,null,null,null,"","","",null,null,"","",null,"",null,"",null,"",null,""]
[null,52,"","","","","","",null,null,null,"",null,null,null,null,null,null,null,null,null,null,null,null,null,null,null,null,null,null,null,null,null,null,null,null,null,null,null,null,null,null,null,null,null,null,"","",null,null,null,null,null,"",null,null,null,null,null,null,null,"",null,null,null,null,null,null,null,"",null,null,null,null,null,null,null,"",null,null,null,null,null,null,null,"",null,null,null,null,null,null,null,"","","","","","","","",null,"","",null,null,null,null,null,null,null,null,null,null,null,null,null,null,null,null,null,null,null,"","","",null,null,"","",null,"",null,"",null,"",null,""]
[null,53,"","","","","","",null,null,null,"",null,null,null,null,null,null,null,null,null,null,null,null,null,null,null,null,null,null,null,null,null,null,null,null,null,null,null,null,null,null,null,null,null,null,"","",null,null,null,null,null,"",null,null,null,null,null,null,null,"",null,null,null,null,null,null,null,"",null,null,null,null,null,null,null,"",null,null,null,null,null,null,null,"",null,null,null,null,null,null,null,"","","","","","","","",null,"","",null,null,null,null,null,null,null,null,null,null,null,null,null,null,null,null,null,null,null,"","","",null,null,"","",null,"",null,"",null,"",null,""]
[null,54,"","","","","","",null,null,null,"",null,null,null,null,null,null,null,null,null,null,null,null,null,null,null,null,null,null,null,null,null,null,null,null,null,null,null,null,null,null,null,null,null,null,"","",null,null,null,null,null,"",null,null,null,null,null,null,null,"",null,null,null,null,null,null,null,"",null,null,null,null,null,null,null,"",null,null,null,null,null,null,null,"",null,null,null,null,null,null,null,"","","","","","","","",null,"","",null,null,null,null,null,null,null,null,null,null,null,null,null,null,null,null,null,null,null,"","","",null,null,"","",null,"",null,"",null,"",null,""]
[null,55,"","","","","","",null,null,null,"",null,null,null,null,null,null,null,null,null,null,null,null,null,null,null,null,null,null,null,null,null,null,null,null,null,null,null,null,null,null,null,null,null,null,"","",null,null,null,null,null,"",null,null,null,null,null,null,null,"",null,null,null,null,null,null,null,"",null,null,null,null,null,null,null,"",null,null,null,null,null,null,null,"",null,null,null,null,null,null,null,"","","","","","","","",null,"","",null,null,null,null,null,null,null,null,null,null,null,null,null,null,null,null,null,null,null,"","","",null,null,"","",null,"",null,"",null,"",null,""]
[null,56,"","","","","","",null,null,null,"",null,null,null,null,null,null,null,null,null,null,null,null,null,null,null,null,null,null,null,null,null,null,null,null,null,null,null,null,null,null,null,null,null,null,"","",null,null,null,null,null,"",null,null,null,null,null,null,null,"",null,null,null,null,null,null,null,"",null,null,null,null,null,null,null,"",null,null,null,null,null,null,null,"",null,null,null,null,null,null,null,"","","","","","","","",null,"","",null,null,null,null,null,null,null,null,null,null,null,null,null,null,null,null,null,null,null,"","","",null,null,"","",null,"",null,"",null,"",null,""]
[null,57,"","","","","","",null,null,null,"",null,null,null,null,null,null,null,null,null,null,null,null,null,null,null,null,null,null,null,null,null,null,null,null,null,null,null,null,null,null,null,null,null,null,"","",null,null,null,null,null,"",null,null,null,null,null,null,null,"",null,null,null,null,null,null,null,"",null,null,null,null,null,null,null,"",null,null,null,null,null,null,null,"",null,null,null,null,null,null,null,"","","","","","","","",null,"","",null,null,null,null,null,null,null,null,null,null,null,null,null,null,null,null,null,null,null,"","","",null,null,"","",null,"",null,"",null,"",null,""]
[null,58,"","","","","","",null,null,null,"",null,null,null,null,null,null,null,null,null,null,null,null,null,null,null,null,null,null,null,null,null,null,null,null,null,null,null,null,null,null,null,null,null,null,"","",null,null,null,null,null,"",null,null,null,null,null,null,null,"",null,null,null,null,null,null,null,"",null,null,null,null,null,null,null,"",null,null,null,null,null,null,null,"",null,null,null,null,null,null,null,"","","","","","","","",null,"","",null,null,null,null,null,null,null,null,null,null,null,null,null,null,null,null,null,null,null,"","","",null,null,"","",null,"",null,"",null,"",null,""]
[null,59,"","","","","","",null,null,null,"",null,null,null,null,null,null,null,null,null,null,null,null,null,null,null,null,null,null,null,null,null,null,null,null,null,null,null,null,null,null,null,null,null,null,"","",null,null,null,null,null,"",null,null,null,null,null,null,null,"",null,null,null,null,null,null,null,"",null,null,null,null,null,null,null,"",null,null,null,null,null,null,null,"",null,null,null,null,null,null,null,"","","","","","","","",null,"","",null,null,null,null,null,null,null,null,null,null,null,null,null,null,null,null,null,null,null,"","","",null,null,"","",null,"",null,"",null,"",null,""]
[null,60,"","","","","","",null,null,null,"",null,null,null,null,null,null,null,null,null,null,null,null,null,null,null,null,null,null,null,null,null,null,null,null,null,null,null,null,null,null,null,null,null,null,"","",null,null,null,null,null,"",null,null,null,null,null,null,null,"",null,null,null,null,null,null,null,"",null,null,null,null,null,null,null,"",null,null,null,null,null,null,null,"",null,null,null,null,null,null,null,"","","","","","","","",null,"","",null,null,null,null,null,null,null,null,null,null,null,null,null,null,null,null,null,null,null,"","","",null,null,"","",null,"",null,"",null,"",null,""]
[null,61,"","","","","","",null,null,null,"",null,null,null,null,null,null,null,null,null,null,null,null,null,null,null,null,null,null,null,null,null,null,null,null,null,null,null,null,null,null,null,null,null,null,"","",null,null,null,null,null,"",null,null,null,null,null,null,null,"",null,null,null,null,null,null,null,"",null,null,null,null,null,null,null,"",null,null,null,null,null,null,null,"",null,null,null,null,null,null,null,"","","","","","","","",null,"","",null,null,null,null,null,null,null,null,null,null,null,null,null,null,null,null,null,null,null,"","","",null,null,"","",null,"",null,"",null,"",null,""]
[null,62,"","","","","","",null,null,null,"",null,null,null,null,null,null,null,null,null,null,null,null,null,null,null,null,null,null,null,null,null,null,null,null,null,null,null,null,null,null,null,null,null,null,"","",null,null,null,null,null,"",null,null,null,null,null,null,null,"",null,null,null,null,null,null,null,"",null,null,null,null,null,null,null,"",null,null,null,null,null,null,null,"",null,null,null,null,null,null,null,"","","","","","","","",null,"","",null,null,null,null,null,null,null,null,null,null,null,null,null,null,null,null,null,null,null,"","","",null,null,"","",null,"",null,"",null,"",null,""]
[null,63,"","","","","","",null,null,null,"",null,null,null,null,null,null,null,null,null,null,null,null,null,null,null,null,null,null,null,null,null,null,null,null,null,null,null,null,null,null,null,null,null,null,"","",null,null,null,null,null,"",null,null,null,null,null,null,null,"",null,null,null,null,null,null,null,"",null,null,null,null,null,null,null,"",null,null,null,null,null,null,null,"",null,null,null,null,null,null,null,"","","","","","","","",null,"","",null,null,null,null,null,null,null,null,null,null,null,null,null,null,null,null,null,null,null,"","","",null,null,"","",null,"",null,"",null,"",null,""]
[null,64,"","","","","","",null,null,null,"",null,null,null,null,null,null,null,null,null,null,null,null,null,null,null,null,null,null,null,null,null,null,null,null,null,null,null,null,null,null,null,null,null,null,"","",null,null,null,null,null,"",null,null,null,null,null,null,null,"",null,null,null,null,null,null,null,"",null,null,null,null,null,null,null,"",null,null,null,null,null,null,null,"",null,null,null,null,null,null,null,"","","","","","","","",null,"","",null,null,null,null,null,null,null,null,null,null,null,null,null,null,null,null,null,null,null,"","","",null,null,"","",null,"",null,"",null,"",null,""]
[null,65,"","","","","","",null,null,null,"",null,null,null,null,null,null,null,null,null,null,null,null,null,null,null,null,null,null,null,null,null,null,null,null,null,null,null,null,null,null,null,null,null,null,"","",null,null,null,null,null,"",null,null,null,null,null,null,null,"",null,null,null,null,null,null,null,"",null,null,null,null,null,null,null,"",null,null,null,null,null,null,null,"",null,null,null,null,null,null,null,"","","","","","","","",null,"","",null,null,null,null,null,null,null,null,null,null,null,null,null,null,null,null,null,null,null,"","","",null,null,"","",null,"",null,"",null,"",null,""]
[null,{"$f":"ROW()-17","v":66},{"$f":"IF(COUNTA($I83:$J83,$N83:$R83,$W83:$Y83,$AA83:$AT83,$AW83:$BA83,$BC83:$BI83,$BK83:$BQ83,$BS83:$BY83,$CA83:$CG83,$CI83:$CO83)<>0,1,\"\")","v":""},{"$f":"IF(C83<>\"\",2110,\"\")","v":""},{"$f":"IF($I83<>\"\",1,\"\")","v":""},{"$f":"IF($I83<>\"\",$N$5,\"\")","v":""},{"$f":"IF($I83<>\"\",$N$6,\"\")","v":""},{"$f":"IF($I83<>\"\",$N$7,\"\")","v":""},null,null,null,{"$f":"IF($I83<>\"\",$N$8,\"\")","v":""},null,null,null,null,null,null,null,null,null,null,null,null,null,null,null,null,null,null,null,null,null,null,null,null,null,null,null,null,null,null,null,null,null,null,{"$f":"IF($I83<>\"\",\"01\",\"\")","v":""},{"$f":"IF($I83<>\"\",3,\"\")","v":""},null,null,null,null,null,{"$f":"IF($BC83<>\"\",\"3\",\"\")","v":""},null,null,null,null,null,null,null,{"$f":"IF($BK83<>\"\",\"3\",\"\")","v":""},null,null,null,null,null,null,null,{"$f":"IF($BS83<>\"\",\"3\",\"\")","v":""},null,null,null,null,null,null,null,{"$f":"IF($CA83<>\"\",\"3\",\"\")","v":""},null,null,null,null,null,null,null,{"$f":"IF($CI83<>\"\",\"3\",\"\")","v":""},null,null,null,null,null,null,null,{"$f":"IF(AND(BC83<>\"\",BC83<>\"60\"),1,\"\")","v":""},{"$f":"IF(AND(BK83<>\"\",BK83<>\"60\"),1,\"\")","v":""},{"$f":"IF(AND(BS83<>\"\",BS83<>\"60\"),1,\"\")","v":""},{"$f":"IF(AND(CA83<>\"\",CA83<>\"60\"),1,\"\")","v":""},{"$f":"IF(AND(CI83<>\"\",CI83<>\"60\"),1,\"\")","v":""},{"$f":"IF($I83<>\"\",4,\"\")","v":""},{"$f":"IF($I83<>\"\",2,\"\")","v":""},"",null,{"$f":"IF($I83<>\"\",1,\"\")","v":""},"",null,null,null,null,null,null,null,null,null,null,null,null,null,null,null,null,null,null,null,{"$f":"IF($I83<>\"\",\"800\",\"\")","v":""},"",{"$f":"IF($I83<>\"\",\"900\",\"\")","v":""},null,null,"",{"$f":"IF(AND(BC83<>\"\",BC83<>\"60\"),1,\"\")","v":""},null,{"$f":"IF(AND(BK83<>\"\",BK83<>\"60\"),1,\"\")","v":""},null,{"$f":"IF(AND(BS83<>\"\",BS83<>\"60\"),1,\"\")","v":""},null,{"$f":"IF(AND(CA83<>\"\",CA83<>\"60\"),1,\"\")","v":""},null,{"$f":"IF(AND(CI83<>\"\",CI83<>\"60\"),1,\"\")","v":""}]
[null,67,"","","","","","",null,null,null,"",null,null,null,null,null,null,null,null,null,null,null,null,null,null,null,null,null,null,null,null,null,null,null,null,null,null,null,null,null,null,null,null,null,null,"","",null,null,null,null,null,"",null,null,null,null,null,null,null,"",null,null,null,null,null,null,null,"",null,null,null,null,null,null,null,"",null,null,null,null,null,null,null,"",null,null,null,null,null,null,null,"","","","","","","","",null,"","",null,null,null,null,null,null,null,null,null,null,null,null,null,null,null,null,null,null,null,"","","",null,null,{"$f":"IF(BA84=\"97.5%\",\" 975\",IF(BA84=\"100%\",\"1000\",\"\"))","v":""},"",null,"",null,"",null,"",null,""]
[null,68,"","","","","","",null,null,null,"",null,null,null,null,null,null,null,null,null,null,null,null,null,null,null,null,null,null,null,null,null,null,null,null,null,null,null,null,null,null,null,null,null,null,"","",null,null,null,null,null,"",null,null,null,null,null,null,null,"",null,null,null,null,null,null,null,"",null,null,null,null,null,null,null,"",null,null,null,null,null,null,null,"",null,null,null,null,null,null,null,"","","","","","","","",null,"","",null,null,null,null,null,null,null,null,null,null,null,null,null,null,null,null,null,null,null,"","","",null,null,"","",null,"",null,"",null,"",null,""]
[null,69,"","","","","","",null,null,null,"",null,null,null,null,null,null,null,null,null,null,null,null,null,null,null,null,null,null,null,null,null,null,null,null,null,null,null,null,null,null,null,null,null,null,"","",null,null,null,null,null,"",null,null,null,null,null,null,null,"",null,null,null,null,null,null,null,"",null,null,null,null,null,null,null,"",null,null,null,null,null,null,null,"",null,null,null,null,null,null,null,"","","","","","","","",null,"","",null,null,null,null,null,null,null,null,null,null,null,null,null,null,null,null,null,null,null,"","","",null,null,"","",null,"",null,"",null,"",null,""]
[null,70,"","","","","","",null,null,null,"",null,null,null,null,null,null,null,null,null,null,null,null,null,null,null,null,null,null,null,null,null,null,null,null,null,null,null,null,null,null,null,null,null,null,"","",null,null,null,null,null,"",null,null,null,null,null,null,null,"",null,null,null,null,null,null,null,"",null,null,null,null,null,null,null,"",null,null,null,null,null,null,null,"",null,null,null,null,null,null,null,"","","","","","","","",null,"","",null,null,null,null,null,null,null,null,null,null,null,null,null,null,null,null,null,null,null,"","","",null,null,"","",null,"",null,"",null,"",null,""]
[null,71,"","","","","","",null,null,null,"",null,null,null,null,null,null,null,null,null,null,null,null,null,null,null,null,null,null,null,null,null,null,null,null,null,null,null,null,null,null,null,null,null,null,"","",null,null,null,null,null,"",null,null,null,null,null,null,null,"",null,null,null,null,null,null,null,"",null,null,null,null,null,null,null,"",null,null,null,null,null,null,null,"",null,null,null,null,null,null,null,"","","","","","","","",null,"","",null,null,null,null,null,null,null,null,null,null,null,null,null,null,null,null,null,null,null,"","","",null,null,"","",null,"",null,"",null,"",null,""]
[null,72,"","","","","","",null,null,null,"",null,null,null,null,null,null,null,null,null,null,null,null,null,null,null,null,null,null,null,null,null,null,null,null,null,null,null,null,null,null,null,null,null,null,"","",null,null,null,null,null,"",null,null,null,null,null,null,null,"",null,null,null,null,null,null,null,"",null,null,null,null,null,null,null,"",null,null,null,null,null,null,null,"",null,null,null,null,null,null,null,"","","","","","","","",null,"","",null,null,null,null,null,null,null,null,null,null,null,null,null,null,null,null,null,null,null,"","","",null,null,"","",null,"",null,"",null,"",null,""]
[null,73,"","","","","","",null,null,null,"",null,null,null,null,null,null,null,null,null,null,null,null,null,null,null,null,null,null,null,null,null,null,null,null,null,null,null,null,null,null,null,null,null,null,"","",null,null,null,null,null,"",null,null,null,null,null,null,null,"",null,null,null,null,null,null,null,"",null,null,null,null,null,null,null,"",null,null,null,null,null,null,null,"",null,null,null,null,null,null,null,"","","","","","","","",null,"","",null,null,null,null,null,null,null,null,null,null,null,null,null,null,null,null,null,null,null,"","","",null,null,"","",null,"",null,"",null,"",null,""]
[null,74,"","","","","","",null,null,null,"",null,null,null,null,null,null,null,null,null,null,null,null,null,null,null,null,null,null,null,null,null,null,null,null,null,null,null,null,null,null,null,null,null,null,"","",null,null,null,null,null,"",null,null,null,null,null,null,null,"",null,null,null,null,null,null,null,"",null,null,null,null,null,null,null,"",null,null,null,null,null,null,null,"",null,null,null,null,null,null,null,"","","","","","","","",null,"","",null,null,null,null,null,null,null,null,null,null,null,null,null,null,null,null,null,null,null,"","","",null,null,"","",null,"",null,"",null,"",null,""]
[null,75,"","","","","","",null,null,null,"",null,null,null,null,null,null,null,null,null,null,null,null,null,null,null,null,null,null,null,null,null,null,null,null,null,null,null,null,null,null,null,null,null,null,"","",null,null,null,null,null,"",null,null,null,null,null,null,null,"",null,null,null,null,null,null,null,"",null,null,null,null,null,null,null,"",null,null,null,null,null,null,null,"",null,null,null,null,null,null,null,"","","","","","","","",null,"","",null,null,null,null,null,null,null,null,null,null,null,null,null,null,null,null,null,null,null,"","","",null,null,"","",null,"",null,"",null,"",null,""]
[null,76,"","","","","","",null,null,null,"",null,null,null,null,null,null,null,null,null,null,null,null,null,null,null,null,null,null,null,null,null,null,null,null,null,null,null,null,null,null,null,null,null,null,"","",null,null,null,null,null,"",null,null,null,null,null,null,null,"",null,null,null,null,null,null,null,"",null,null,null,null,null,null,null,"",null,null,null,null,null,null,null,"",null,null,null,null,null,null,null,"","","","","","","","",null,"","",null,null,null,null,null,null,null,null,null,null,null,null,null,null,null,null,null,null,null,"","","",null,null,"","",null,"",null,"",null,"",null,""]
[null,77,"","","","","","",null,null,null,"",null,null,null,null,null,null,null,null,null,null,null,null,null,null,null,null,null,null,null,null,null,null,null,null,null,null,null,null,null,null,null,null,null,null,"","",null,null,null,null,null,"",null,null,null,null,null,null,null,"",null,null,null,null,null,null,null,"",null,null,null,null,null,null,null,"",null,null,null,null,null,null,null,"",null,null,null,null,null,null,null,"","","","","","","","",null,"","",null,null,null,null,null,null,null,null,null,null,null,null,null,null,null,null,null,null,null,"","","",null,null,"","",null,"",null,"",null,"",null,""]
[null,78,"","","","","","",null,null,null,"",null,null,null,null,null,null,null,null,null,null,null,null,null,null,null,null,null,null,null,null,null,null,null,null,null,null,null,null,null,null,null,null,null,null,"","",null,null,null,null,null,"",null,null,null,null,null,null,null,"",null,null,null,null,null,null,null,"",null,null,null,null,null,null,null,"",null,null,null,null,null,null,null,"",null,null,null,null,null,null,null,"","","","","","","","",null,"","",null,null,null,null,null,null,null,null,null,null,null,null,null,null,null,null,null,null,null,"","","",null,null,"","",null,"",null,"",null,"",null,""]
[null,79,"","","","","","",null,null,null,"",null,null,null,null,null,null,null,null,null,null,null,null,null,null,null,null,null,null,null,null,null,null,null,null,null,null,null,null,null,null,null,null,null,null,"","",null,null,null,null,null,"",null,null,null,null,null,null,null,"",null,null,null,null,null,null,null,"",null,null,null,null,null,null,null,"",null,null,null,null,null,null,null,"",null,null,null,null,null,null,null,"","","","","","","","",null,"","",null,null,null,null,null,null,null,null,null,null,null,null,null,null,null,null,null,null,null,"","","",null,null,"","",null,"",null,"",null,"",null,""]
[null,80,"","","","","","",null,null,null,"",null,null,null,null,null,null,null,null,null,null,null,null,null,null,null,null,null,null,null,null,null,null,null,null,null,null,null,null,null,null,null,null,null,null,"","",null,null,null,null,null,"",null,null,null,null,null,null,null,"",null,null,null,null,null,null,null,"",null,null,null,null,null,null,null,"",null,null,null,null,null,null,null,"",null,null,null,null,null,null,null,"","","","","","","","",null,"","",null,null,null,null,null,null,null,null,null,null,null,null,null,null,null,null,null,null,null,"","","",null,null,"","",null,"",null,"",null,"",null,""]
[null,81,"","","","","","",null,null,null,"",null,null,null,null,null,null,null,null,null,null,null,null,null,null,null,null,null,null,null,null,null,null,null,null,null,null,null,null,null,null,null,null,null,null,"","",null,null,null,null,null,"",null,null,null,null,null,null,null,"",null,null,null,null,null,null,null,"",null,null,null,null,null,null,null,"",null,null,null,null,null,null,null,"",null,null,null,null,null,null,null,"","","","","","","","",null,"","",null,null,null,null,null,null,null,null,null,null,null,null,null,null,null,null,null,null,null,"","","",null,null,"","",null,"",null,"",null,"",null,""]
[null,82,"","","","","","",null,null,null,"",null,null,null,null,null,null,null,null,null,null,null,null,null,null,null,null,null,null,null,null,null,null,null,null,null,null,null,null,null,null,null,null,null,null,"","",null,null,null,null,null,"",null,null,null,null,null,null,null,"",null,null,null,null,null,null,null,"",null,null,null,null,null,null,null,"",null,null,null,null,null,null,null,"",null,null,null,null,null,null,null,"","","","","","","","",null,"","",null,null,null,null,null,null,null,null,null,null,null,null,null,null,null,null,null,null,null,"","","",null,null,"","",null,"",null,"",null,"",null,""]
[null,83,"","","","","","",null,null,null,"",null,null,null,null,null,null,null,null,null,null,null,null,null,null,null,null,null,null,null,null,null,null,null,null,null,null,null,null,null,null,null,null,null,null,"","",null,null,null,null,null,"",null,null,null,null,null,null,null,"",null,null,null,null,null,null,null,"",null,null,null,null,null,null,null,"",null,null,null,null,null,null,null,"",null,null,null,null,null,null,null,"","","","","","","","",null,"","",null,null,null,null,null,null,null,null,null,null,null,null,null,null,null,null,null,null,null,"","","",null,null,"","",null,"",null,"",null,"",null,""]
[null,84,"","","","","","",null,null,null,"",null,null,null,null,null,null,null,null,null,null,null,null,null,null,null,null,null,null,null,null,null,null,null,null,null,null,null,null,null,null,null,null,null,null,"","",null,null,null,null,null,"",null,null,null,null,null,null,null,"",null,null,null,null,null,null,null,"",null,null,null,null,null,null,null,"",null,null,null,null,null,null,null,"",null,null,null,null,null,null,null,"","","","","","","","",null,"","",null,null,null,null,null,null,null,null,null,null,null,null,null,null,null,null,null,null,null,"","","",null,null,"","",null,"",null,"",null,"",null,""]
[null,85,"","","","","","",null,null,null,"",null,null,null,null,null,null,null,null,null,null,null,null,null,null,null,null,null,null,null,null,null,null,null,null,null,null,null,null,null,null,null,null,null,null,"","",null,null,null,null,null,"",null,null,null,null,null,null,null,"",null,null,null,null,null,null,null,"",null,null,null,null,null,null,null,"",null,null,null,null,null,null,null,"",null,null,null,null,null,null,null,"","","","","","","","",null,"","",null,null,null,null,null,null,null,null,null,null,null,null,null,null,null,null,null,null,null,"","","",null,null,"","",null,"",null,"",null,"",null,""]
[null,86,"","","","","","",null,null,null,"",null,null,null,null,null,null,null,null,null,null,null,null,null,null,null,null,null,null,null,null,null,null,null,null,null,null,null,null,null,null,null,null,null,null,"","",null,null,null,null,null,"",null,null,null,null,null,null,null,"",null,null,null,null,null,null,null,"",null,null,null,null,null,null,null,"",null,null,null,null,null,null,null,"",null,null,null,null,null,null,null,"","","","","","","","",null,"","",null,null,null,null,null,null,null,null,null,null,null,null,null,null,null,null,null,null,null,"","","",null,null,"","",null,"",null,"",null,"",null,""]
[null,87,"","","","","","",null,null,null,"",null,null,null,null,null,null,null,null,null,null,null,null,null,null,null,null,null,null,null,null,null,null,null,null,null,null,null,null,null,null,null,null,null,null,"","",null,null,null,null,null,"",null,null,null,null,null,null,null,"",null,null,null,null,null,null,null,"",null,null,null,null,null,null,null,"",null,null,null,null,null,null,null,"",null,null,null,null,null,null,null,"","","","","","","","",null,"","",null,null,null,null,null,null,null,null,null,null,null,null,null,null,null,null,null,null,null,"","","",null,null,"","",null,"",null,"",null,"",null,""]
[null,88,"","","","","","",null,null,null,"",null,null,null,null,null,null,null,null,null,null,null,null,null,null,null,null,null,null,null,null,null,null,null,null,null,null,null,null,null,null,null,null,null,null,"","",null,null,null,null,null,"",null,null,null,null,null,null,null,"",null,null,null,null,null,null,null,"",null,null,null,null,null,null,null,"",null,null,null,null,null,null,null,"",null,null,null,null,null,null,null,"","","","","","","","",null,"","",null,null,null,null,null,null,null,null,null,null,null,null,null,null,null,null,null,null,null,"","","",null,null,"","",null,"",null,"",null,"",null,""]
[null,89,"","","","","","",null,null,null,"",null,null,null,null,null,null,null,null,null,null,null,null,null,null,null,null,null,null,null,null,null,null,null,null,null,null,null,null,null,null,null,null,null,null,"","",null,null,null,null,null,"",null,null,null,null,null,null,null,"",null,null,null,null,null,null,null,"",null,null,null,null,null,null,null,"",null,null,null,null,null,null,null,"",null,null,null,null,null,null,null,"","","","","","","","",null,"","",null,null,null,null,null,null,null,null,null,null,null,null,null,null,null,null,null,null,null,"","","",null,null,"","",null,"",null,"",null,"",null,""]
[null,90,"","","","","","",null,null,null,"",null,null,null,null,null,null,null,null,null,null,null,null,null,null,null,null,null,null,null,null,null,null,null,null,null,null,null,null,null,null,null,null,null,null,"","",null,null,null,null,null,"",null,null,null,null,null,null,null,"",null,null,null,null,null,null,null,"",null,null,null,null,null,null,null,"",null,null,null,null,null,null,null,"",null,null,null,null,null,null,null,"","","","","","","","",null,"","",null,null,null,null,null,null,null,null,null,null,null,null,null,null,null,null,null,null,null,"","","",null,null,"","",null,"",null,"",null,"",null,""]
[null,91,"","","","","","",null,null,null,"",null,null,null,null,null,null,null,null,null,null,null,null,null,null,null,null,null,null,null,null,null,null,null,null,null,null,null,null,null,null,null,null,null,null,"","",null,null,null,null,null,"",null,null,null,null,null,null,null,"",null,null,null,null,null,null,null,"",null,null,null,null,null,null,null,"",null,null,null,null,null,null,null,"",null,null,null,null,null,null,null,"","","","","","","","",null,"","",null,null,null,null,null,null,null,null,null,null,null,null,null,null,null,null,null,null,null,"","","",null,null,"","",null,"",null,"",null,"",null,""]
[null,92,"","","","","","",null,null,null,"",null,null,null,null,null,null,null,null,null,null,null,null,null,null,null,null,null,null,null,null,null,null,null,null,null,null,null,null,null,null,null,null,null,null,"","",null,null,null,null,null,"",null,null,null,null,null,null,null,"",null,null,null,null,null,null,null,"",null,null,null,null,null,null,null,"",null,null,null,null,null,null,null,"",null,null,null,null,null,null,null,"","","","","","","","",null,"","",null,null,null,null,null,null,null,null,null,null,null,null,null,null,null,null,null,null,null,"","","",null,null,"","",null,"",null,"",null,"",null,""]
[null,93,"","","","","","",null,null,null,"",null,null,null,null,null,null,null,null,null,null,null,null,null,null,null,null,null,null,null,null,null,null,null,null,null,null,null,null,null,null,null,null,null,null,"","",null,null,null,null,null,"",null,null,null,null,null,null,null,"",null,null,null,null,null,null,null,"",null,null,null,null,null,null,null,"",null,null,null,null,null,null,null,"",null,null,null,null,null,null,null,"","","","","","","","",null,"","",null,null,null,null,null,null,null,null,null,null,null,null,null,null,null,null,null,null,null,"","","",null,null,"","",null,"",null,"",null,"",null,""]
[null,94,"","","","","","",null,null,null,"",null,null,null,null,null,null,null,null,null,null,null,null,null,null,null,null,null,null,null,null,null,null,null,null,null,null,null,null,null,null,null,null,null,null,"","",null,null,null,null,null,"",null,null,null,null,null,null,null,"",null,null,null,null,null,null,null,"",null,null,null,null,null,null,null,"",null,null,null,null,null,null,null,"",null,null,null,null,null,null,null,"","","","","","","","",null,"","",null,null,null,null,null,null,null,null,null,null,null,null,null,null,null,null,null,null,null,"","","",null,null,"","",null,"",null,"",null,"",null,""]
[null,95,"","","","","","",null,null,null,"",null,null,null,null,null,null,null,null,null,null,null,null,null,null,null,null,null,null,null,null,null,null,null,null,null,null,null,null,null,null,null,null,null,null,"","",null,null,null,null,null,"",null,null,null,null,null,null,null,"",null,null,null,null,null,null,null,"",null,null,null,null,null,null,null,"",null,null,null,null,null,null,null,"",null,null,null,null,null,null,null,"","","","","","","","",null,"","",null,null,null,null,null,null,null,null,null,null,null,null,null,null,null,null,null,null,null,"","","",null,null,"","",null,"",null,"",null,"",null,""]
[null,96,"","","","","","",null,null,null,"",null,null,null,null,null,null,null,null,null,null,null,null,null,null,null,null,null,null,null,null,null,null,null,null,null,null,null,null,null,null,null,null,null,null,"","",null,null,null,null,null,"",null,null,null,null,null,null,null,"",null,null,null,null,null,null,null,"",null,null,null,null,null,null,null,"",null,null,null,null,null,null,null,"",null,null,null,null,null,null,null,"","","","","","","","",null,"","",null,null,null,null,null,null,null,null,null,null,null,null,null,null,null,null,null,null,null,"","","",null,null,"","",null,"",null,"",null,"",null,""]
[null,97,"","","","","","",null,null,null,"",null,null,null,null,null,null,null,null,null,null,null,null,null,null,null,null,null,null,null,null,null,null,null,null,null,null,null,null,null,null,null,null,null,null,"","",null,null,null,null,null,"",null,null,null,null,null,null,null,"",null,null,null,null,null,null,null,"",null,null,null,null,null,null,null,"",null,null,null,null,null,null,null,"",null,null,null,null,null,null,null,"","","","","","","","",null,"","",null,null,null,null,null,null,null,null,null,null,null,null,null,null,null,null,null,null,null,"","","",null,null,"","",null,"",null,"",null,"",null,""]
[null,98,"","","","","","",null,null,null,"",null,null,null,null,null,null,null,null,null,null,null,null,null,null,null,null,null,null,null,null,null,null,null,null,null,null,null,null,null,null,null,null,null,null,"","",null,null,null,null,null,"",null,null,null,null,null,null,null,"",null,null,null,null,null,null,null,"",null,null,null,null,null,null,null,"",null,null,null,null,null,null,null,"",null,null,null,null,null,null,null,"","","","","","","","",null,"","",null,null,null,null,null,null,null,null,null,null,null,null,null,null,null,null,null,null,null,"","","",null,null,"","",null,"",null,"",null,"",null,""]
[null,99,"","","","","","",null,null,null,"",null,null,null,null,null,null,null,null,null,null,null,null,null,null,null,null,null,null,null,null,null,null,null,null,null,null,null,null,null,null,null,null,null,null,"","",null,null,null,null,null,"",null,null,null,null,null,null,null,"",null,null,null,null,null,null,null,"",null,null,null,null,null,null,null,"",null,null,null,null,null,null,null,"",null,null,null,null,null,null,null,"","","","","","","","",null,"","",null,null,null,null,null,null,null,null,null,null,null,null,null,null,null,null,null,null,null,"","","",null,null,"","",null,"",null,"",null,"",null,""]
[null,100,"","","","","","",null,null,null,"",null,null,null,null,null,null,null,null,null,null,null,null,null,null,null,null,null,null,null,null,null,null,null,null,null,null,null,null,null,null,null,null,null,null,"","",null,null,null,null,null,"",null,null,null,null,null,null,null,"",null,null,null,null,null,null,null,"",null,null,null,null,null,null,null,"",null,null,null,null,null,null,null,"",null,null,null,null,null,null,null,"","","","","","","","",null,"","",null,null,null,null,null,null,null,null,null,null,null,null,null,null,null,null,null,null,null,"","","",null,null,"","",null,"",null,"",null,"",null,""]

{"sheet":"企総用・入力（修正、変更等）","index":2,"n_rows":117,"n_cols":144,"rows_kept":117,"cut":false,"hidden":false,"merged":[[4,4,4,7],[5,4,5,7],[6,4,6,7]]}
[]
[null,"企業総合保険(2110）- 修正、変更等"]
[]
[]
[null,null,null,null,"証券番号－本支店"]
[null,null,null,null,"証券番号－\n特約コード"]
[null,null,null,null,"保険利用者コード"]
[]
[]
[null,null,"ソート順",1,2,3,4,5,6,7,8,33,34,36,35,37,9,40,41,38,39,null,46,47,26,32,18,49,50,48,51,52,null,54,42,null,55,56,57,58,59,null,60,64,61,62,72,73,74,75,76,77,null,null,81,86,83,84,80,87,88,null,81,86,83,84,80,87,88,null,81,86,83,84,80,87,88,null,81,86,83,84,80,87,88,null,81,86,83,84,80,87,88,79,90,101,112,123,10,11,12,13,14,15,16,17,19,20,21,22,23,24,25,27,28,29,30,31,43,44,45,53,63,65,66,68,69,70,71,82,85,93,96,104,107,115,118,126,129,133,134,135,136,67]
[null,"タイトル","タイトル","シートID","処理種別","証券番号－本支店","証券番号\n－特約コード","証券番号\n－年度","証券番号\n－一連番号","枝番","履歴番号","申込者","被保険者","保険金受取人","被保険者\n部門","保険申込日","契約形態","輸出契約等\n締結日","輸出契約等\n変更日","変更事由","元枝番","保険目的等譲渡日","輸出契約等番号","リファレンス番号","特約商品\n－外貨建","特約商品\n－地球環境","他の\n保険契約","通貨","為替換算率","輸出契約等元本","貨物","受渡条件","役務枝","発効条件の\n有無","輸出契約等\n発効日","告知事項の\n有無","仕向国","支払国","支払人","保証国","保証人","支配関係の\n有無","買契約\n相手国","船積国","売契約相手国","売契約相手方","船積No","船積修正削除フラグ","Ｆ／Ｓ\n予定日","Ｌ／Ｓ\n予定日","船積前保険対象額","船積後保険対象額","船積後付保率\n（非常）","決済修正\n削除フラグ１","決済方法１","決済支払保証\n１","ユーザンス\n月日指定１","ユーザンス\n期間１","決済予定日１","決済元本１","決済金利１","決済修正\n削除フラグ２","決済方法２","決済支払保証\n２","ユーザンス\n月日指定２","ユーザンス\n期間２","決済予定日２","決済元本２","決済金利２","決済修正\n削除フラグ３","決済方法３","決済支払保証\n３","ユーザンス\n月日指定３","ユーザンス\n期間３","決済予定日３","決済元本３","決済金利３","決済修正\n削除フラグ４","決済方法４","決済支払保証\n４","ユーザンス\n月日指定４","ユーザンス\n期間４","決済予定日４","決済元本４","決済金利４","決済修正\n削除フラグ５","決済方法５","決済支払保証\n５","ユーザンス\n月日指定５","ユーザンス\n期間５","決済予定日５","決済元本５","決済金利５","決済種別１","決済種別２","決済種別３","決済種別４","決済種別５","個別・包括区分","船積前\nてん補種別","船積後\nてん補種別","増加費用\nてん補種別","支払区分","徴収区分","内諾番号","確認管理番号","特殊契約\n－エスカレーションクローズ","特殊契約\n－円約款","特殊契約－\nキャッシュオプション","特殊契約\n－完成納期","特約商品－\nフルターン有無","特約商品－\nフルターン保険期間","特約商品\n－共同契約\nてん補範囲","特約商品－\nライセンス有無","特約商品－\nライセンス支払限度額","特約商品\n－支出費用\r\n有無","特約商品－\n支出費用保険期間","特約商品－\n支出費用保険対象額","技術等提供\n開始日","国内販売\n締結日","貨物引渡日","ｴﾋﾞﾃﾞﾝｽの有無","船主国","船積前付保率（非常）","船積前付保率（信用）","船積後付保率（信用）","増加費用保険対象額","増加費用\n付保率","予備1","決済起算方式１","決済予備１","決済起算方式２","決済予備２","決済起算方式３","決済予備３","決済起算方式４","決済予備４","決済起算方式５","決済予備５","受理本支店","受理日","受理番号","予備2","未使用項目"]
[null,"属性","属性","CHAR","CHAR","CHAR","CHAR","CHAR","CHAR","CHAR","CHAR","CHAR","CHAR","CHAR","CHAR","CHAR","CHAR","CHAR","CHAR","CHAR","CHAR","CHAR","CHAR","CHAR","CHAR","CHAR","CHAR","CHAR","NUM","NUM","CHAR","CHAR","CHAR","CHAR","CHAR","CHAR","CHAR","CHAR","CHAR","CHAR","CHAR","CHAR","CHAR","CHAR","CHAR","CHAR","CHAR","CHAR","CHAR","CHAR","NUM","NUM","NUM","CHAR","CHAR","CHAR","CHAR","NUM","CHAR","NUM","NUM","CHAR","CHAR","CHAR","CHAR","NUM","CHAR","NUM","NUM",null,"CHAR","CHAR","CHAR","NUM","CHAR","NUM","NUM",null,"CHAR","CHAR","CHAR","NUM","CHAR","NUM","NUM",null,"CHAR","CHAR","CHAR","NUM","CHAR","NUM","NUM","CHAR","CHAR","CHAR","CHAR","CHAR","CHAR","CHAR","CHAR","CHAR","CHAR","CHAR","CHAR","CHAR","CHAR","CHAR","CHAR","CHAR","CHAR","NUM","CHAR","CHAR","NUM","CHAR","NUM","NUM","CHAR","CHAR","CHAR","CHAR","CHAR","NUM","NUM","NUM","NUM","NUM","CHAR","CHAR","CHAR","CHAR","CHAR","CHAR","CHAR","CHAR","CHAR","CHAR","CHAR","CHAR","CHAR","CHAR","CHAR","NUM"]
[null,"記入桁数","記入桁数",4,1,2,9,2,6,2,2,9,9,9,6,6,2,6,6,2,2,6,25,15,1,1,1,3,10,15,6,1,1,1,6,1,3,3,7,3,7,1,3,3,3,7,2,1,6,6,15,15,4,1,2,2,1,3,6,15,15,1,2,2,1,3,6,15,15,null,2,2,1,3,6,15,15,null,2,2,1,3,6,15,15,null,2,2,1,3,6,15,15,1,1,1,1,1,1,1,1,1,1,1,12,8,1,1,1,1,1,3,1,1,15,1,3,15,6,6,6,1,3,3,3,3,15,3,33,1,4,1,4,1,4,1,4,1,4,2,6,5,318,3]
[null,"少数部桁数","少数部桁数",0,0,0,0,0,0,0,0,null,null,null,null,null,0,null,null,null,null,null,null,null,0,null,0,null,6,2,null,null,null,null,null,null,null,null,null,null,null,null,null,null,null,null,null,null,null,null,2,2,null,null,null,null,null,null,null,2,2,null,null,null,null,null,null,2,2,null,null,null,null,null,null,2,2,null,null,null,null,null,null,2,2,null,null,null,null,null,null,2,2,null,null,null,null,null,0,0,0,0,0,0,0,0,0,0,0,0,0,0,0,0,0,0,0,2,null,null,null,null,null,1,1,1,2,1]
[null,"入力必須","入力必須","*","*","*","*","*","*",null,null,null,null,null,null,null,null,null,null,null,null,null,null,null,null,null,null,null,null,null,null,null,null,null,null,null,null,null,null,null,null,null,null,null,null,null,null,null,null,null,null,null,null,null,null,null,null,null,null,null,null,null,null,null,null,null,null,null,null,null,null,null,null,null,null,null,null,null,null,null,null,null,null,null,null,null,null,null,null,null,null,null,null,null,null,null,null,null,"*","*","*",null,null,null,null,null,null,null,null,null,null,null,null,null,null,null,null,null,null,null,null,null,null,"*","*","*"]
[null,"入力例","入力例","\"2110\"固定","変更","本店",999999999,25,123456,"00","00",123456789,123456789,123456789,123456,250101,"輸出",250101,250102,"増額新規","00",0,"1234567890123456789012345","123456789012345","なし",1,"なし","001",1234.123456,1234567890123.1201,123456,"ＦＯＢ","役務枝","なし","250101","なし",304,304,1234567,205,1234567,"なし",304,302,304,1234567,"\"01\"固定",2,250101,250101,1234567890123.1201,1234567890123.1201,0.97499999999999998,"修正",10,10,"月指定",123,"250101",1234567890123.1201,1234567890123.1201,"修正",10,10,"月指定",123,"250101",1234567890123.1201,1234567890123.1201,"修正",10,10,"月指定",123,"250101",1234567890123.1201,1234567890123.1201,"修正",10,10,"月指定",123,"250101",1234567890123.1201,1234567890123.1201,"修正",10,10,"月指定",123,"250101",1234567890123.1201,1234567890123.1201,"ｷｬｯｼｭ:\"1\"固定","ｷｬｯｼｭ:\"1\"固定","ｷｬｯｼｭ:\"1\"固定","ｷｬｯｼｭ:\"1\"固定","ｷｬｯｼｭ:\"1\"固定","企総:\"4\"固定","総合:\"2\"固定","総合:\"2\"固定",null,"2年未満:\"1\"固定","一括:\"1\"固定",null,null,null,null,null,null,null,null,null,null,null,null,null,null,null,null,null,null,null,"80%固定","80%固定","90%固定",null,null,null,"E/S起算:\"1\"固定",null,"E/S起算:\"1\"固定",null,"E/S起算:\"1\"固定",null,"E/S起算:\"1\"固定",null,"E/S起算:\"1\"固定"]
[null,"入力桁数","記入桁数",4,1,"選択",9,2,6,2,2,9,9,9,6,6,"選択",6,6,"選択",2,6,25,15,"選択",1,"選択",3,10,15,6,"選択","選択","選択",6,"選択",3,3,7,3,7,"選択",3,3,3,7,2,1,6,6,15,15,4,"選択","選択","選択","選択",3,6,15,15,"選択","選択","選択","選択",3,6,15,15,"選択","選択","選択","選択",3,6,15,15,"選択","選択","選択","選択",3,6,15,15,"選択","選択","選択","選択",3,6,15,15,1,1,1,1,1,1,1,1,1,1,1,12,8,1,1,1,1,1,3,1,1,15,1,3,15,6,6,6,1,3,3,3,3,15,3,33,1,4,1,4,1,4,1,4,1,4,2,6,5,318,3]
[null,{"$f":"ROW()-17","v":1},{"$f":"IF(COUNTA($E18,$H18:$K18,$N18:$U18,$W18:$Y18,$AA18:$AT18,$AW18:$CO18)<>0,1,\"\")","v":""},{"$f":"IF($I18<>\"\",2110,\"\")","v":""},null,{"$f":"IF($I18<>\"\",$I$5,\"\")","v":""},{"$f":"IF($I18<>\"\",$I$6,\"\")","v":""},null,null,null,null,{"$f":"IF($I18<>\"\",$I$7,\"\")","v":""},null,null,null,null,null,null,null,null,null,null,null,null,null,null,null,null,null,null,null,null,null,null,null,null,null,null,null,null,null,null,null,null,null,null,{"$f":"IF($I18<>\"\",\"01\",\"\")","v":""},{"$f":"IF(OR($AW18<>\"\", $AX18<>\"\", $AY18<>\"\", $AZ18<>\"\"), \"2\", \"\")","v":""},null,null,null,null,null,null,null,null,null,null,null,null,null,null,null,null,null,null,null,null,null,null,null,null,null,null,null,null,null,null,null,null,null,null,null,null,null,null,null,null,null,null,null,null,null,{"$f":"IF(AND(BC18<>\"\",BC18<>\"60\"),1,\"\")","v":""},{"$f":"IF(AND(BK18<>\"\",BK18<>\"60\"),1,\"\")","v":""},{"$f":"IF(AND(BS18<>\"\",BS18<>\"60\"),1,\"\")","v":""},{"$f":"IF(AND(CA18<>\"\",CA18<>\"60\"),1,\"\")","v":""},{"$f":"IF(AND(CI18<>\"\",CI18<>\"60\"),1,\"\")","v":""},{"$f":"IF($C18<>\"\",4,\"\")","v":""},{"$f":"IF($C18<>\"\",2,\"\")","v":""},"",null,{"$f":"IF($C18<>\"\",1,\"\")","v":""},"",null,null,null,null,null,null,null,null,null,null,null,null,null,null,null,null,null,null,null,null,null,null,null,null,{"$f":"IF(BA18=0.975,\" 975\",IF(BA18=1,\"1000\",\"\"))","v":""},{"$f":"IF(AND(BC18<>\"\",BC18<>\"60\"),1,\"\")","v":""},null,{"$f":"IF(AND(BK18<>\"\",BK18<>\"60\"),1,\"\")","v":""},null,{"$f":"IF(AND(BS18<>\"\",BS18<>\"60\"),1,\"\")","v":""},null,{"$f":"IF(AND(CA18<>\"\",CA18<>\"60\"),1,\"\")","v":""},null,{"$f":"IF(AND(CI18<>\"\",CI18<>\"60\"),1,\"\")","v":""}]
[null,{"$f":"ROW()-17","v":2},{"$f":"IF(COUNTA($E19,$H19:$K19,$N19:$U19,$W19:$Y19,$AA19:$AT19,$AW19:$CO19)<>0,1,\"\")","v":""},{"$f":"IF(C19<>\"\",2110,\"\")","v":""},null,"","",null,null,null,null,{"$f":"IF($I19<>\"\",$I$7,\"\")","v":""},null,null,null,null,null,null,null,null,null,null,null,null,null,null,null,null,null,null,null,null,null,null,null,null,null,null,null,null,null,null,null,null,null,null,{"$f":"IF($I19<>\"\",\"01\",\"\")","v":""},{"$f":"IF(OR($AW19<>\"\", $AX19<>\"\", $AY19<>\"\", $AZ19<>\"\"), \"2\", \"\")","v":""},null,null,null,null,null,null,null,null,null,null,null,null,null,null,null,null,null,null,null,null,null,null,null,null,null,null,null,null,null,null,null,null,null,null,null,null,null,null,null,null,null,null,null,null,null,{"$f":"IF(AND(BC19<>\"\",BC19<>\"60\"),1,\"\")","v":""},{"$f":"IF(AND(BK19<>\"\",BK19<>\"60\"),1,\"\")","v":""},{"$f":"IF(AND(BS19<>\"\",BS19<>\"60\"),1,\"\")","v":""},{"$f":"IF(AND(CA19<>\"\",CA19<>\"60\"),1,\"\")","v":""},{"$f":"IF(AND(CI19<>\"\",CI19<>\"60\"),1,\"\")","v":""},"","","",null,"","",null,null,null,null,null,null,null,null,null,null,null,null,null,null,null,null,null,null,null,null,null,null,null,null,"",{"$f":"IF(AND(BC19<>\"\",BC19<>\"60\"),1,\"\")","v":""},null,{"$f":"IF(AND(BK19<>\"\",BK19<>\"60\"),1,\"\")","v":""},null,{"$f":"IF(AND(BS19<>\"\",BS19<>\"60\"),1,\"\")","v":""},null,{"$f":"IF(AND(CA19<>\"\",CA19<>\"60\"),1,\"\")","v":""},null,{"$f":"IF(AND(CI19<>\"\",CI19<>\"60\"),1,\"\")","v":""}]
[null,3,"","",null,"","",null,null,null,null,"",null,null,null,null,null,null,null,null,null,null,null,null,null,null,null,null,null,null,null,null,null,null,null,null,null,null,null,null,null,null,null,null,null,null,"","",null,null,null,null,null,null,null,null,null,null,null,null,null,null,null,null,null,null,null,null,null,null,null,null,null,null,null,null,null,null,null,null,null,null,null,null,null,null,null,null,null,null,null,null,null,"","","","","","","","",null,"","",null,null,null,null,null,null,null,null,null,null,null,null,null,null,null,null,null,null,null,null,null,null,null,null,"","",null,"",null,"",null,"",null,""]
[null,4,"","",null,"","",null,null,null,null,{"$f":"IF($I21<>\"\",$I$7,\"\")","v":""},null,null,null,null,null,null,null,null,null,null,null,null,null,null,null,null,null,null,null,null,null,null,null,null,null,null,null,null,null,null,null,null,null,null,"","",null,null,null,null,null,null,null,null,null,null,null,null,null,null,null,null,null,null,null,null,null,null,null,null,null,null,null,null,null,null,null,null,null,null,null,null,null,null,null,null,null,null,null,null,null,"","","","","","","","",null,"","",null,null,null,null,null,null,null,null,null,null,null,null,null,null,null,null,null,null,null,null,null,null,null,null,"","",null,"",null,"",null,"",null,""]
[null,5,"","",null,"","",null,null,null,null,"",null,null,null,null,null,null,null,null,null,null,null,null,null,null,null,null,null,null,null,null,null,null,null,null,null,null,null,null,null,null,null,null,null,null,"","",null,null,null,null,null,null,null,null,null,null,null,null,null,null,null,null,null,null,null,null,null,null,null,null,null,null,null,null,null,null,null,null,null,null,null,null,null,null,null,null,null,null,null,null,null,"","","","","","","","",null,"","",null,null,null,null,null,null,null,null,null,null,null,null,null,null,null,null,null,null,null,null,null,null,null,null,"","",null,"",null,"",null,"",null,""]
[null,6,"","",null,"","",null,null,null,null,"",null,null,null,null,null,null,null,null,null,null,null,null,null,null,null,null,null,null,null,null,null,null,null,null,null,null,null,null,null,null,null,null,null,null,"","",null,null,null,null,null,null,null,null,null,null,null,null,null,null,null,null,null,null,null,null,null,null,null,null,null,null,null,null,null,null,null,null,null,null,null,null,null,null,null,null,null,null,null,null,null,"","","","","","","","",null,"","",null,null,null,null,null,null,null,null,null,null,null,null,null,null,null,null,null,null,null,null,null,null,null,null,"","",null,"",null,"",null,"",null,""]
[null,7,"","",null,"","",null,null,null,null,"",null,null,null,null,null,null,null,null,null,null,null,null,null,null,null,null,null,null,null,null,null,null,null,null,null,null,null,null,null,null,null,null,null,null,"","",null,null,null,null,null,null,null,null,null,null,null,null,null,null,null,null,null,null,null,null,null,null,null,null,null,null,null,null,null,null,null,null,null,null,null,null,null,null,null,null,null,null,null,null,null,"","","","","","","","",null,"","",null,null,null,null,null,null,null,null,null,null,null,null,null,null,null,null,null,null,null,null,null,null,null,null,"","",null,"",null,"",null,"",null,""]
[null,8,"","",null,"","",null,null,null,null,"",null,null,null,null,null,null,null,null,null,null,null,null,null,null,null,null,null,null,null,null,null,null,null,null,null,null,null,null,null,null,null,null,null,null,{"$f":"IF($I25<>\"\",\"01\",\"\")","v":""},"",null,null,null,null,null,null,null,null,null,null,null,null,null,null,null,null,null,null,null,null,null,null,null,null,null,null,null,null,null,null,null,null,null,null,null,null,null,null,null,null,null,null,null,null,null,"","","","","","","","",null,"","",null,null,null,null,null,null,null,null,null,null,null,null,null,null,null,null,null,null,null,null,null,null,null,null,"","",null,"",null,"",null,"",null,""]
[null,9,"","",null,"","",null,null,null,null,"",null,null,null,null,null,null,null,null,null,null,null,null,null,null,null,null,null,null,null,null,null,null,null,null,null,null,null,null,null,null,null,null,null,null,"",{"$f":"IF(OR($AW26<>\"\", $AX26<>\"\", $AY26<>\"\", $AZ26<>\"\"), \"2\", \"\")","v":""},null,null,null,null,null,null,null,null,null,null,null,null,null,null,null,null,null,null,null,null,null,null,null,null,null,null,null,null,null,null,null,null,null,null,null,null,null,null,null,null,null,null,null,null,null,"","","","","","","","",null,"","",null,null,null,null,null,null,null,null,null,null,null,null,null,null,null,null,null,null,null,null,null,null,null,null,"","",null,"",null,"",null,"",null,""]
[null,10,"","",null,"","",null,null,null,null,"",null,null,null,null,null,null,null,null,null,null,null,null,null,null,null,null,null,null,null,null,null,null,null,null,null,null,null,null,null,null,null,null,null,null,"","",null,null,null,null,null,null,null,null,null,null,null,null,null,null,null,null,null,null,null,null,null,null,null,null,null,null,null,null,null,null,null,null,null,null,null,null,null,null,null,null,null,null,null,null,null,"","","","","","","","",null,"","",null,null,null,null,null,null,null,null,null,null,null,null,null,null,null,null,null,null,null,null,null,null,null,null,"","",null,"",null,"",null,"",null,""]
[null,11,"","",null,"","",null,null,null,null,"",null,null,null,null,null,null,null,null,null,null,null,null,null,null,null,null,null,null,null,null,null,null,null,null,null,null,null,null,null,null,null,null,null,null,"","",null,null,null,null,null,null,null,null,null,null,null,null,null,null,null,null,null,null,null,null,null,null,null,null,null,null,null,null,null,null,null,null,null,null,null,null,null,null,null,null,null,null,null,null,null,"","","","","","","","",null,"","",null,null,null,null,null,null,null,null,null,null,null,null,null,null,null,null,null,null,null,null,null,null,null,null,"","",null,"",null,"",null,"",null,""]
[null,12,"","",null,"","",null,null,null,null,"",null,null,null,null,null,null,null,null,null,null,null,null,null,null,null,null,null,null,null,null,null,null,null,null,null,null,null,null,null,null,null,null,null,null,"","",null,null,null,null,null,null,null,null,null,null,null,null,null,null,null,null,null,null,null,null,null,null,null,null,null,null,null,null,null,null,null,null,null,null,null,null,null,null,null,null,null,null,null,null,null,"","","","","","","","",null,"","",null,null,null,null,null,null,null,null,null,null,null,null,null,null,null,null,null,null,null,null,null,null,null,null,"","",null,"",null,"",null,"",null,""]
[null,13,"","",null,"","",null,null,null,null,"",null,null,null,null,null,null,null,null,null,null,null,null,null,null,null,null,null,null,null,null,null,null,null,null,null,null,null,null,null,null,null,null,null,null,"","",null,null,null,null,null,null,null,null,null,null,null,null,null,null,null,null,null,null,null,null,null,null,null,null,null,null,null,null,null,null,null,null,null,null,null,null,null,null,null,null,null,null,null,null,null,"","","","","","","","",null,"","",null,null,null,null,null,null,null,null,null,null,null,null,null,null,null,null,null,null,null,null,null,null,null,null,"","",null,"",null,"",null,"",null,""]
[null,14,"","",null,"","",null,null,null,null,"",null,null,null,null,null,null,null,null,null,null,null,null,null,null,null,null,null,null,null,null,null,null,null,null,null,null,null,null,null,null,null,null,null,null,"","",null,null,null,null,null,null,null,null,null,null,null,null,null,null,null,null,null,null,null,null,null,null,null,null,null,null,null,null,null,null,null,null,null,null,null,null,null,null,null,null,null,null,null,null,null,"","","","","","","","",null,"","",null,null,null,null,null,null,null,null,null,null,null,null,null,null,null,null,null,null,null,null,null,null,null,null,"","",null,"",null,"",null,"",null,""]
[null,15,"","",null,"","",null,null,null,null,"",null,null,null,null,null,null,null,null,null,null,null,null,null,null,null,null,null,null,null,null,null,null,null,null,null,null,null,null,null,null,null,null,null,null,"","",null,null,null,null,null,null,null,null,null,null,null,null,null,null,null,null,null,null,null,null,null,null,null,null,null,null,null,null,null,null,null,null,null,null,null,null,null,null,null,null,null,null,null,null,null,"","","","","","","","",null,"","",null,null,null,null,null,null,null,null,null,null,null,null,null,null,null,null,null,null,null,null,null,null,null,null,"","",null,"",null,"",null,"",null,""]
[null,16,"","",null,"","",null,null,null,null,"",null,null,null,null,null,null,null,null,null,null,null,null,null,null,null,null,null,null,null,null,null,null,null,null,null,null,null,null,null,null,null,null,null,null,"","",null,null,null,null,null,null,null,null,null,null,null,null,null,null,null,null,null,null,null,null,null,null,null,null,null,null,null,null,null,null,null,null,null,null,null,null,null,null,null,null,null,null,null,null,null,"","","","","","","","",null,"","",null,null,null,null,null,null,null,null,null,null,null,null,null,null,null,null,null,null,null,null,null,null,null,null,"","",null,"",null,"",null,"",null,""]
[null,17,"","",null,"","",null,null,null,null,"",null,null,null,null,null,null,null,null,null,null,null,null,null,null,null,null,null,null,null,null,null,null,null,null,null,null,null,null,null,null,null,null,null,null,"","",null,null,null,null,null,null,null,null,null,null,null,null,null,null,null,null,null,null,null,null,null,null,null,null,null,null,null,null,null,null,null,null,null,null,null,null,null,null,null,null,null,null,null,null,null,"","","","","","","","",null,"","",null,null,null,null,null,null,null,null,null,null,null,null,null,null,null,null,null,null,null,null,null,null,null,null,"","",null,"",null,"",null,"",null,""]
[null,18,"","",null,"","",null,null,null,null,"",null,null,null,null,null,null,null,null,null,null,null,null,null,null,null,null,null,null,null,null,null,null,null,null,null,null,null,null,null,null,null,null,null,null,"","",null,null,null,null,null,null,null,null,null,null,null,null,null,null,null,null,null,null,null,null,null,null,null,null,null,null,null,null,null,null,null,null,null,null,null,null,null,null,null,null,null,null,null,null,null,"","","","","","","","",null,"","",null,null,null,null,null,null,null,null,null,null,null,null,null,null,null,null,null,null,null,null,null,null,null,null,"","",null,"",null,"",null,"",null,""]
[null,19,"","",null,"","",null,null,null,null,"",null,null,null,null,null,null,null,null,null,null,null,null,null,null,null,null,null,null,null,null,null,null,null,null,null,null,null,null,null,null,null,null,null,null,"","",null,null,null,null,null,null,null,null,null,null,null,null,null,null,null,null,null,null,null,null,null,null,null,null,null,null,null,null,null,null,null,null,null,null,null,null,null,null,null,null,null,null,null,null,null,"","","","","","","","",null,"","",null,null,null,null,null,null,null,null,null,null,null,null,null,null,null,null,null,null,null,null,null,null,null,null,"","",null,"",null,"",null,"",null,""]
[null,20,"","",null,"","",null,null,null,null,"",null,null,null,null,null,null,null,null,null,null,null,null,null,null,null,null,null,null,null,null,null,null,null,null,null,null,null,null,null,null,null,null,null,null,"","",null,null,null,null,null,null,null,null,null,null,null,null,null,null,null,null,null,null,null,null,null,null,null,null,null,null,null,null,null,null,null,null,null,null,null,null,null,null,null,null,null,null,null,null,null,"","","","","","","","",null,"","",null,null,null,null,null,null,null,null,null,null,null,null,null,null,null,null,null,null,null,null,null,null,null,null,"","",null,"",null,"",null,"",null,""]
[null,21,"","",null,"","",null,null,null,null,"",null,null,null,null,null,null,null,null,null,null,null,null,null,null,null,null,null,null,null,null,null,null,null,null,null,null,null,null,null,null,null,null,null,null,"","",null,null,null,null,null,null,null,null,null,null,null,null,null,null,null,null,null,null,null,null,null,null,null,null,null,null,null,null,null,null,null,null,null,null,null,null,null,null,null,null,null,null,null,null,null,"","","","","","","","",null,"","",null,null,null,null,null,null,null,null,null,null,null,null,null,null,null,null,null,null,null,null,null,null,null,null,"","",null,"",null,"",null,"",null,""]
[null,22,"","",null,"","",null,null,null,null,"",null,null,null,null,null,null,null,null,null,null,null,null,null,null,null,null,null,null,null,null,null,null,null,null,null,null,null,null,null,null,null,null,null,null,"","",null,null,null,null,null,null,null,null,null,null,null,null,null,null,null,null,null,null,null,null,null,null,null,null,null,null,null,null,null,null,null,null,null,null,null,null,null,null,null,null,null,null,null,null,null,"","","","","","","","",null,"","",null,null,null,null,null,null,null,null,null,null,null,null,null,null,null,null,null,null,null,null,null,null,null,null,"","",null,"",null,"",null,"",null,""]
[null,23,"","",null,"","",null,null,null,null,"",null,null,null,null,null,null,null,null,null,null,null,null,null,null,null,null,null,null,null,null,null,null,null,null,null,null,null,null,null,null,null,null,null,null,"","",null,null,null,null,null,null,null,null,null,null,null,null,null,null,null,null,null,null,null,null,null,null,null,null,null,null,null,null,null,null,null,null,null,null,null,null,null,null,null,null,null,null,null,null,null,"","","","","","","","",null,"","",null,null,null,null,null,null,null,null,null,null,null,null,null,null,null,null,null,null,null,null,null,null,null,null,"","",null,"",null,"",null,"",null,""]
[null,24,"","",null,"","",null,null,null,null,"",null,null,null,null,null,null,null,null,null,null,null,null,null,null,null,null,null,null,null,null,null,null,null,null,null,null,null,null,null,null,null,null,null,null,"","",null,null,null,null,null,null,null,null,null,null,null,null,null,null,null,null,null,null,null,null,null,null,null,null,null,null,null,null,null,null,null,null,null,null,null,null,null,null,null,null,null,null,null,null,null,"","","","","","","","",null,"","",null,null,null,null,null,null,null,null,null,null,null,null,null,null,null,null,null,null,null,null,null,null,null,null,"","",null,"",null,"",null,"",null,""]
[null,25,"","",null,"","",null,null,null,null,"",null,null,null,null,null,null,null,null,null,null,null,null,null,null,null,null,null,null,null,null,null,null,null,null,null,null,null,null,null,null,null,null,null,null,"","",null,null,null,null,null,null,null,null,null,null,null,null,null,null,null,null,null,null,null,null,null,null,null,null,null,null,null,null,null,null,null,null,null,null,null,null,null,null,null,null,null,null,null,null,null,"","","","","","","","",null,"","",null,null,null,null,null,null,null,null,null,null,null,null,null,null,null,null,null,null,null,null,null,null,null,null,"","",null,"",null,"",null,"",null,""]
[null,26,"","",null,"","",null,null,null,null,"",null,null,null,null,null,null,null,null,null,null,null,null,null,null,null,null,null,null,null,null,null,null,null,null,null,null,null,null,null,null,null,null,null,null,"","",null,null,null,null,null,null,null,null,null,null,null,null,null,null,null,null,null,null,null,null,null,null,null,null,null,null,null,null,null,null,null,null,null,null,null,null,null,null,null,null,null,null,null,null,null,"","","","","","","","",null,"","",null,null,null,null,null,null,null,null,null,null,null,null,null,null,null,null,null,null,null,null,null,null,null,null,"","",null,"",null,"",null,"",null,""]
[null,27,"","",null,"","",null,null,null,null,"",null,null,null,null,null,null,null,null,null,null,null,null,null,null,null,null,null,null,null,null,null,null,null,null,null,null,null,null,null,null,null,null,null,null,"","",null,null,null,null,null,null,null,null,null,null,null,null,null,null,null,null,null,null,null,null,null,null,null,null,null,null,null,null,null,null,null,null,null,null,null,null,null,null,null,null,null,null,null,null,null,"","","","","","","","",null,"","",null,null,null,null,null,null,null,null,null,null,null,null,null,null,null,null,null,null,null,null,null,null,null,null,"","",null,"",null,"",null,"",null,""]
[null,28,"","",null,"","",null,null,null,null,"",null,null,null,null,null,null,null,null,null,null,null,null,null,null,null,null,null,null,null,null,null,null,null,null,null,null,null,null,null,null,null,null,null,null,"","",null,null,null,null,null,null,null,null,null,null,null,null,null,null,null,null,null,null,null,null,null,null,null,null,null,null,null,null,null,null,null,null,null,null,null,null,null,null,null,null,null,null,null,null,null,"","","","","","","","",null,"","",null,null,null,null,null,null,null,null,null,null,null,null,null,null,null,null,null,null,null,null,null,null,null,null,"","",null,"",null,"",null,"",null,""]
[null,29,"","",null,"","",null,null,null,null,"",null,null,null,null,null,null,null,null,null,null,null,null,null,null,null,null,null,null,null,null,null,null,null,null,null,null,null,null,null,null,null,null,null,null,"","",null,null,null,null,null,null,null,null,null,null,null,null,null,null,null,null,null,null,null,null,null,null,null,null,null,null,null,null,null,null,null,null,null,null,null,null,null,null,null,null,null,null,null,null,null,"","","","","","","","",null,"","",null,null,null,null,null,null,null,null,null,null,null,null,null,null,null,null,null,null,null,null,null,null,null,null,"","",null,"",null,"",null,"",null,""]
[null,30,"","",null,"","",null,null,null,null,"",null,null,null,null,null,null,null,null,null,null,null,null,null,null,null,null,null,null,null,null,null,null,null,null,null,null,null,null,null,null,null,null,null,null,"","",null,null,null,null,null,null,null,null,null,null,null,null,null,null,null,null,null,null,null,null,null,null,null,null,null,null,null,null,null,null,null,null,null,null,null,null,null,null,null,null,null,null,null,null,null,"","","","","","","","",null,"","",null,null,null,null,null,null,null,null,null,null,null,null,null,null,null,null,null,null,null,null,null,null,null,null,"","",null,"",null,"",null,"",null,""]
[null,31,"","",null,"","",null,null,null,null,"",null,null,null,null,null,null,null,null,null,null,null,null,null,null,null,null,null,null,null,null,null,null,null,null,null,null,null,null,null,null,null,null,null,null,"","",null,null,null,null,null,null,null,null,null,null,null,null,null,null,null,null,null,null,null,null,null,null,null,null,null,null,null,null,null,null,null,null,null,null,null,null,null,null,null,null,null,null,null,null,null,"","","","","","","","",null,"","",null,null,null,null,null,null,null,null,null,null,null,null,null,null,null,null,null,null,null,null,null,null,null,null,"","",null,"",null,"",null,"",null,""]
[null,32,"","",null,"","",null,null,null,null,"",null,null,null,null,null,null,null,null,null,null,null,null,null,null,null,null,null,null,null,null,null,null,null,null,null,null,null,null,null,null,null,null,null,null,"","",null,null,null,null,null,null,null,null,null,null,null,null,null,null,null,null,null,null,null,null,null,null,null,null,null,null,null,null,null,null,null,null,null,null,null,null,null,null,null,null,null,null,null,null,null,"","","","","","","","",null,"","",null,null,null,null,null,null,null,null,null,null,null,null,null,null,null,null,null,null,null,null,null,null,null,null,"","",null,"",null,"",null,"",null,""]
[null,33,"","",null,{"$f":"IF($I50<>\"\",$I$5,\"\")","v":""},{"$f":"IF($I50<>\"\",$I$6,\"\")","v":""},null,null,null,null,"",null,null,null,null,null,null,null,null,null,null,null,null,null,null,null,null,null,null,null,null,null,null,null,null,null,null,null,null,null,null,null,null,null,null,"","",null,null,null,null,null,null,null,null,null,null,null,null,null,null,null,null,null,null,null,null,null,null,null,null,null,null,null,null,null,null,null,null,null,null,null,null,null,null,null,null,null,null,null,null,null,"","","","","","","","",null,"","",null,null,null,null,null,null,null,null,null,null,null,null,null,null,null,null,null,null,null,null,null,null,null,null,"","",null,"",null,"",null,"",null,""]
[null,34,"","",null,"","",null,null,null,null,"",null,null,null,null,null,null,null,null,null,null,null,null,null,null,null,null,null,null,null,null,null,null,null,null,null,null,null,null,null,null,null,null,null,null,"","",null,null,null,null,null,null,null,null,null,null,null,null,null,null,null,null,null,null,null,null,null,null,null,null,null,null,null,null,null,null,null,null,null,null,null,null,null,null,null,null,null,null,null,null,null,"","","","","","",{"$f":"IF($C51<>\"\",2,\"\")","v":""},"",null,{"$f":"IF($C51<>\"\",1,\"\")","v":""},"",null,null,null,null,null,null,null,null,null,null,null,null,null,null,null,null,null,null,null,null,null,null,null,null,"","",null,"",null,"",null,"",null,""]
[null,35,"","",null,"","",null,null,null,null,"",null,null,null,null,null,null,null,null,null,null,null,null,null,null,null,null,null,null,null,null,null,null,null,null,null,null,null,null,null,null,null,null,null,null,"","",null,null,null,null,null,null,null,null,null,null,null,null,null,null,null,null,null,null,null,null,null,null,null,null,null,null,null,null,null,null,null,null,null,null,null,null,null,null,null,null,null,null,null,null,null,"","","","","","","","",null,"","",null,null,null,null,null,null,null,null,null,null,null,null,null,null,null,null,null,null,null,null,null,null,null,null,"","",null,"",null,"",null,"",null,""]
[null,36,"","",null,"","",null,null,null,null,"",null,null,null,null,null,null,null,null,null,null,null,null,null,null,null,null,null,null,null,null,null,null,null,null,null,null,null,null,null,null,null,null,null,null,"","",null,null,null,null,null,null,null,null,null,null,null,null,null,null,null,null,null,null,null,null,null,null,null,null,null,null,null,null,null,null,null,null,null,null,null,null,null,null,null,null,null,null,null,null,null,"","","","","","","","",null,"","",null,null,null,null,null,null,null,null,null,null,null,null,null,null,null,null,null,null,null,null,null,null,null,null,"","",null,"",null,"",null,"",null,""]
[null,37,"","",null,"","",null,null,null,null,"",null,null,null,null,null,null,null,null,null,null,null,null,null,null,null,null,null,null,null,null,null,null,null,null,null,null,null,null,null,null,null,null,null,null,"","",null,null,null,null,null,null,null,null,null,null,null,null,null,null,null,null,null,null,null,null,null,null,null,null,null,null,null,null,null,null,null,null,null,null,null,null,null,null,null,null,null,null,null,null,null,"","","","","","","","",null,"","",null,null,null,null,null,null,null,null,null,null,null,null,null,null,null,null,null,null,null,null,null,null,null,null,"","",null,"",null,"",null,"",null,""]
[null,38,"","",null,"","",null,null,null,null,"",null,null,null,null,null,null,null,null,null,null,null,null,null,null,null,null,null,null,null,null,null,null,null,null,null,null,null,null,null,null,null,null,null,null,"","",null,null,null,null,null,null,null,null,null,null,null,null,null,null,null,null,null,null,null,null,null,null,null,null,null,null,null,null,null,null,null,null,null,null,null,null,null,null,null,null,null,null,null,null,null,"","","","","","","","",null,"","",null,null,null,null,null,null,null,null,null,null,null,null,null,null,null,null,null,null,null,null,null,null,null,null,"","",null,"",null,"",null,"",null,""]
[null,39,"","",null,"","",null,null,null,null,"",null,null,null,null,null,null,null,null,null,null,null,null,null,null,null,null,null,null,null,null,null,null,null,null,null,null,null,null,null,null,null,null,null,null,"","",null,null,null,null,null,null,null,null,null,null,null,null,null,null,null,null,null,null,null,null,null,null,null,null,null,null,null,null,null,null,null,null,null,null,null,null,null,null,null,null,null,null,null,null,null,"","","","","","","","",null,"","",null,null,null,null,null,null,null,null,null,null,null,null,null,null,null,null,null,null,null,null,null,null,null,null,"","",null,"",null,"",null,"",null,""]
[null,40,"","",null,"","",null,null,null,null,"",null,null,null,null,null,null,null,null,null,null,null,null,null,null,null,null,null,null,null,null,null,null,null,null,null,null,null,null,null,null,null,null,null,null,"","",null,null,null,null,null,null,null,null,null,null,null,null,null,null,null,null,null,null,null,null,null,null,null,null,null,null,null,null,null,null,null,null,null,null,null,null,null,null,null,null,null,null,null,null,null,"","","","","","","","",null,"","",null,null,null,null,null,null,null,null,null,null,null,null,null,null,null,null,null,null,null,null,null,null,null,null,"","",null,"",null,"",null,"",null,""]
[null,41,"","",null,"","",null,null,null,null,"",null,null,null,null,null,null,null,null,null,null,null,null,null,null,null,null,null,null,null,null,null,null,null,null,null,null,null,null,null,null,null,null,null,null,"","",null,null,null,null,null,null,null,null,null,null,null,null,null,null,null,null,null,null,null,null,null,null,null,null,null,null,null,null,null,null,null,null,null,null,null,null,null,null,null,null,null,null,null,null,null,"","","","","","","","",null,"","",null,null,null,null,null,null,null,null,null,null,null,null,null,null,null,null,null,null,null,null,null,null,null,null,"","",null,"",null,"",null,"",null,""]
[null,42,"","",null,"","",null,null,null,null,"",null,null,null,null,null,null,null,null,null,null,null,null,null,null,null,null,null,null,null,null,null,null,null,null,null,null,null,null,null,null,null,null,null,null,"","",null,null,null,null,null,null,null,null,null,null,null,null,null,null,null,null,null,null,null,null,null,null,null,null,null,null,null,null,null,null,null,null,null,null,null,null,null,null,null,null,null,null,null,null,null,"","","","","","","","",null,"","",null,null,null,null,null,null,null,null,null,null,null,null,null,null,null,null,null,null,null,null,null,null,null,null,"","",null,"",null,"",null,"",null,""]
[null,43,"","",null,"","",null,null,null,null,"",null,null,null,null,null,null,null,null,null,null,null,null,null,null,null,null,null,null,null,null,null,null,null,null,null,null,null,null,null,null,null,null,null,null,"","",null,null,null,null,null,null,null,null,null,null,null,null,null,null,null,null,null,null,null,null,null,null,null,null,null,null,null,null,null,null,null,null,null,null,null,null,null,null,null,null,null,null,null,null,null,"","","","","","","","",null,"","",null,null,null,null,null,null,null,null,null,null,null,null,null,null,null,null,null,null,null,null,null,null,null,null,"","",null,"",null,"",null,"",null,""]
[null,44,"","",null,"","",null,null,null,null,"",null,null,null,null,null,null,null,null,null,null,null,null,null,null,null,null,null,null,null,null,null,null,null,null,null,null,null,null,null,null,null,null,null,null,"","",null,null,null,null,null,null,null,null,null,null,null,null,null,null,null,null,null,null,null,null,null,null,null,null,null,null,null,null,null,null,null,null,null,null,null,null,null,null,null,null,null,null,null,null,null,"","","","","","","","",null,"","",null,null,null,null,null,null,null,null,null,null,null,null,null,null,null,null,null,null,null,null,null,null,null,null,"","",null,"",null,"",null,"",null,""]
[null,45,"","",null,"","",null,null,null,null,"",null,null,null,null,null,null,null,null,null,null,null,null,null,null,null,null,null,null,null,null,null,null,null,null,null,null,null,null,null,null,null,null,null,null,"","",null,null,null,null,null,null,null,null,null,null,null,null,null,null,null,null,null,null,null,null,null,null,null,null,null,null,null,null,null,null,null,null,null,null,null,null,null,null,null,null,null,null,null,null,null,"","","","","","","","",null,"","",null,null,null,null,null,null,null,null,null,null,null,null,null,null,null,null,null,null,null,null,null,null,null,null,"","",null,"",null,"",null,"",null,""]
[null,46,"","",null,"","",null,null,null,null,"",null,null,null,null,null,null,null,null,null,null,null,null,null,null,null,null,null,null,null,null,null,null,null,null,null,null,null,null,null,null,null,null,null,null,"","",null,null,null,null,null,null,null,null,null,null,null,null,null,null,null,null,null,null,null,null,null,null,null,null,null,null,null,null,null,null,null,null,null,null,null,null,null,null,null,null,null,null,null,null,null,"","","","","","","","",null,"","",null,null,null,null,null,null,null,null,null,null,null,null,null,null,null,null,null,null,null,null,null,null,null,null,"","",null,"",null,"",null,"",null,""]
[null,47,"","",null,"","",null,null,null,null,"",null,null,null,null,null,null,null,null,null,null,null,null,null,null,null,null,null,null,null,null,null,null,null,null,null,null,null,null,null,null,null,null,null,null,"","",null,null,null,null,null,null,null,null,null,null,null,null,null,null,null,null,null,null,null,null,null,null,null,null,null,null,null,null,null,null,null,null,null,null,null,null,null,null,null,null,null,null,null,null,null,"","","","","","","","",null,"","",null,null,null,null,null,null,null,null,null,null,null,null,null,null,null,null,null,null,null,null,null,null,null,null,"","",null,"",null,"",null,"",null,""]
[null,48,"","",null,"","",null,null,null,null,"",null,null,null,null,null,null,null,null,null,null,null,null,null,null,null,null,null,null,null,null,null,null,null,null,null,null,null,null,null,null,null,null,null,null,"","",null,null,null,null,null,null,null,null,null,null,null,null,null,null,null,null,null,null,null,null,null,null,null,null,null,null,null,null,null,null,null,null,null,null,null,null,null,null,null,null,null,null,null,null,null,"","","","","","","","",null,"","",null,null,null,null,null,null,null,null,null,null,null,null,null,null,null,null,null,null,null,null,null,null,null,null,"","",null,"",null,"",null,"",null,""]
[null,49,"","",null,"","",null,null,null,null,"",null,null,null,null,null,null,null,null,null,null,null,null,null,null,null,null,null,null,null,null,null,null,null,null,null,null,null,null,null,null,null,null,null,null,"","",null,null,null,null,null,null,null,null,null,null,null,null,null,null,null,null,null,null,null,null,null,null,null,null,null,null,null,null,null,null,null,null,null,null,null,null,null,null,null,null,null,null,null,null,null,"","","","","","","","",null,"","",null,null,null,null,null,null,null,null,null,null,null,null,null,null,null,null,null,null,null,null,null,null,null,null,"","",null,"",null,"",null,"",null,""]
[null,50,"","",null,"","",null,null,null,null,"",null,null,null,null,null,null,null,null,null,null,null,null,null,null,null,null,null,null,null,null,null,null,null,null,null,null,null,null,null,null,null,null,null,null,"","",null,null,null,null,null,null,null,null,null,null,null,null,null,null,null,null,null,null,null,null,null,null,null,null,null,null,null,null,null,null,null,null,null,null,null,null,null,null,null,null,null,null,null,null,null,"","","","","","","","",null,"","",null,null,null,null,null,null,null,null,null,null,null,null,null,null,null,null,null,null,null,null,null,null,null,null,"","",null,"",null,"",null,"",null,""]
[null,51,"","",null,"","",null,null,null,null,"",null,null,null,null,null,null,null,null,null,null,null,null,null,null,null,null,null,null,null,null,null,null,null,null,null,null,null,null,null,null,null,null,null,null,"","",null,null,null,null,null,null,null,null,null,null,null,null,null,null,null,null,null,null,null,null,null,null,null,null,null,null,null,null,null,null,null,null,null,null,null,null,null,null,null,null,null,null,null,null,null,"","","","","","","","",null,"","",null,null,null,null,null,null,null,null,null,null,null,null,null,null,null,null,null,null,null,null,null,null,null,null,"","",null,"",null,"",null,"",null,""]
[null,52,"","",null,"","",null,null,null,null,"",null,null,null,null,null,null,null,null,null,null,null,null,null,null,null,null,null,null,null,null,null,null,null,null,null,null,null,null,null,null,null,null,null,null,"","",null,null,null,null,null,null,null,null,null,null,null,null,null,null,null,null,null,null,null,null,null,null,null,null,null,null,null,null,null,null,null,null,null,null,null,null,null,null,null,null,null,null,null,null,null,"","","","","","","","",null,"","",null,null,null,null,null,null,null,null,null,null,null,null,null,null,null,null,null,null,null,null,null,null,null,null,"","",null,"",null,"",null,"",null,""]
[null,53,"","",null,"","",null,null,null,null,"",null,null,null,null,null,null,null,null,null,null,null,null,null,null,null,null,null,null,null,null,null,null,null,null,null,null,null,null,null,null,null,null,null,null,"","",null,null,null,null,null,null,null,null,null,null,null,null,null,null,null,null,null,null,null,null,null,null,null,null,null,null,null,null,null,null,null,null,null,null,null,null,null,null,null,null,null,null,null,null,null,"","","","","","","","",null,"","",null,null,null,null,null,null,null,null,null,null,null,null,null,null,null,null,null,null,null,null,null,null,null,null,"","",null,"",null,"",null,"",null,""]
[null,54,"","",null,"","",null,null,null,null,"",null,null,null,null,null,null,null,null,null,null,null,null,null,null,null,null,null,null,null,null,null,null,null,null,null,null,null,null,null,null,null,null,null,null,"","",null,null,null,null,null,null,null,null,null,null,null,null,null,null,null,null,null,null,null,null,null,null,null,null,null,null,null,null,null,null,null,null,null,null,null,null,null,null,null,null,null,null,null,null,null,"","","","","","","","",null,"","",null,null,null,null,null,null,null,null,null,null,null,null,null,null,null,null,null,null,null,null,null,null,null,null,"","",null,"",null,"",null,"",null,""]
[null,55,"","",null,"","",null,null,null,null,"",null,null,null,null,null,null,null,null,null,null,null,null,null,null,null,null,null,null,null,null,null,null,null,null,null,null,null,null,null,null,null,null,null,null,"","",null,null,null,null,null,null,null,null,null,null,null,null,null,null,null,null,null,null,null,null,null,null,null,null,null,null,null,null,null,null,null,null,null,null,null,null,null,null,null,null,null,null,null,null,null,"","","","","","","","",null,"","",null,null,null,null,null,null,null,null,null,null,null,null,null,null,null,null,null,null,null,null,null,null,null,null,"","",null,"",null,"",null,"",null,""]
[null,56,"","",null,"","",null,null,null,null,"",null,null,null,null,null,null,null,null,null,null,null,null,null,null,null,null,null,null,null,null,null,null,null,null,null,null,null,null,null,null,null,null,null,null,"","",null,null,null,null,null,null,null,null,null,null,null,null,null,null,null,null,null,null,null,null,null,null,null,null,null,null,null,null,null,null,null,null,null,null,null,null,null,null,null,null,null,null,null,null,null,"","","","","","","","",null,"","",null,null,null,null,null,null,null,null,null,null,null,null,null,null,null,null,null,null,null,null,null,null,null,null,"","",null,"",null,"",null,"",null,""]
[null,57,"","",null,"","",null,null,null,null,"",null,null,null,null,null,null,null,null,null,null,null,null,null,null,null,null,null,null,null,null,null,null,null,null,null,null,null,null,null,null,null,null,null,null,"","",null,null,null,null,null,null,null,null,null,null,null,null,null,null,null,null,null,null,null,null,null,null,null,null,null,null,null,null,null,null,null,null,null,null,null,null,null,null,null,null,null,null,null,null,null,"","","","","","","","",null,"","",null,null,null,null,null,null,null,null,null,null,null,null,null,null,null,null,null,null,null,null,null,null,null,null,"","",null,"",null,"",null,"",null,""]
[null,58,"","",null,"","",null,null,null,null,"",null,null,null,null,null,null,null,null,null,null,null,null,null,null,null,null,null,null,null,null,null,null,null,null,null,null,null,null,null,null,null,null,null,null,"","",null,null,null,null,null,null,null,null,null,null,null,null,null,null,null,null,null,null,null,null,null,null,null,null,null,null,null,null,null,null,null,null,null,null,null,null,null,null,null,null,null,null,null,null,null,"","","","","","","","",null,"","",null,null,null,null,null,null,null,null,null,null,null,null,null,null,null,null,null,null,null,null,null,null,null,null,"","",null,"",null,"",null,"",null,""]
[null,59,"","",null,"","",null,null,null,null,"",null,null,null,null,null,null,null,null,null,null,null,null,null,null,null,null,null,null,null,null,null,null,null,null,null,null,null,null,null,null,null,null,null,null,"","",null,null,null,null,null,null,null,null,null,null,null,null,null,null,null,null,null,null,null,null,null,null,null,null,null,null,null,null,null,null,null,null,null,null,null,null,null,null,null,null,null,null,null,null,null,"","","","","","","","",null,"","",null,null,null,null,null,null,null,null,null,null,null,null,null,null,null,null,null,null,null,null,null,null,null,null,"","",null,"",null,"",null,"",null,""]
[null,60,"","",null,"","",null,null,null,null,"",null,null,null,null,null,null,null,null,null,null,null,null,null,null,null,null,null,null,null,null,null,null,null,null,null,null,null,null,null,null,null,null,null,null,"","",null,null,null,null,null,null,null,null,null,null,null,null,null,null,null,null,null,null,null,null,null,null,null,null,null,null,null,null,null,null,null,null,null,null,null,null,null,null,null,null,null,null,null,null,null,"","","","","","","","",null,"","",null,null,null,null,null,null,null,null,null,null,null,null,null,null,null,null,null,null,null,null,null,null,null,null,"","",null,"",null,"",null,"",null,""]
[null,61,"","",null,"","",null,null,null,null,"",null,null,null,null,null,null,null,null,null,null,null,null,null,null,null,null,null,null,null,null,null,null,null,null,null,null,null,null,null,null,null,null,null,null,"","",null,null,null,null,null,null,null,null,null,null,null,null,null,null,null,null,null,null,null,null,null,null,null,null,null,null,null,null,null,null,null,null,null,null,null,null,null,null,null,null,null,null,null,null,null,"","","","","","","","",null,"","",null,null,null,null,null,null,null,null,null,null,null,null,null,null,null,null,null,null,null,null,null,null,null,null,"","",null,"",null,"",null,"",null,""]
[null,62,"","",null,"","",null,null,null,null,"",null,null,null,null,null,null,null,null,null,null,null,null,null,null,null,null,null,null,null,null,null,null,null,null,null,null,null,null,null,null,null,null,null,null,"","",null,null,null,null,null,null,null,null,null,null,null,null,null,null,null,null,null,null,null,null,null,null,null,null,null,null,null,null,null,null,null,null,null,null,null,null,null,null,null,null,null,null,null,null,null,"","","","","","","","",null,"","",null,null,null,null,null,null,null,null,null,null,null,null,null,null,null,null,null,null,null,null,null,null,null,null,"","",null,"",null,"",null,"",null,""]
[null,63,"","",null,"","",null,null,null,null,"",null,null,null,null,null,null,null,null,null,null,null,null,null,null,null,null,null,null,null,null,null,null,null,null,null,null,null,null,null,null,null,null,null,null,"","",null,null,null,null,null,null,null,null,null,null,null,null,null,null,null,null,null,null,null,null,null,null,null,null,null,null,null,null,null,null,null,null,null,null,null,null,null,null,null,null,null,null,null,null,null,"","","","","","","","",null,"","",null,null,null,null,null,null,null,null,null,null,null,null,null,null,null,null,null,null,null,null,null,null,null,null,"","",null,"",null,"",null,"",null,""]
[null,64,"","",null,"","",null,null,null,null,"",null,null,null,null,null,null,null,null,null,null,null,null,null,null,null,null,null,null,null,null,null,null,null,null,null,null,null,null,null,null,null,null,null,null,"","",null,null,null,null,null,null,null,null,null,null,null,null,null,null,null,null,null,null,null,null,null,null,null,null,null,null,null,null,null,null,null,null,null,null,null,null,null,null,null,null,null,null,null,null,null,"","","","","","","","",null,"","",null,null,null,null,null,null,null,null,null,null,null,null,null,null,null,null,null,null,null,null,null,null,null,null,"","",null,"",null,"",null,"",null,""]
[null,65,"","",null,{"$f":"IF($I82<>\"\",$I$5,\"\")","v":""},{"$f":"IF($I82<>\"\",$I$6,\"\")","v":""},null,null,null,null,"",null,null,null,null,null,null,null,null,null,null,null,null,null,null,null,null,null,null,null,null,null,null,null,null,null,null,null,null,null,null,null,null,null,null,"","",null,null,null,null,null,null,null,null,null,null,null,null,null,null,null,null,null,null,null,null,null,null,null,null,null,null,null,null,null,null,null,null,null,null,null,null,null,null,null,null,null,null,null,null,null,"","","","","","","","",null,"","",null,null,null,null,null,null,null,null,null,null,null,null,null,null,null,null,null,null,null,null,null,null,null,null,{"$f":"IF(BA82=0.975,\" 975\",IF(BA82=1,\"1000\",\"\"))","v":""},"",null,"",null,"",null,"",null,""]
[null,{"$f":"ROW()-17","v":66},{"$f":"IF(COUNTA($E83,$H83:$K83,$N83:$U83,$W83:$Y83,$AA83:$AT83,$AW83:$CO83)<>0,1,\"\")","v":""},{"$f":"IF(C83<>\"\",2110,\"\")","v":""},null,"","",null,null,null,null,{"$f":"IF($I83<>\"\",$I$7,\"\")","v":""},null,null,null,null,null,null,null,null,null,null,null,null,null,null,null,null,null,null,null,null,null,null,null,null,null,null,null,null,null,null,null,null,null,null,{"$f":"IF($I83<>\"\",\"01\",\"\")","v":""},{"$f":"IF(OR($AW83<>\"\", $AX83<>\"\", $AY83<>\"\", $AZ83<>\"\"), \"2\", \"\")","v":""},null,null,null,null,null,null,null,null,null,null,null,null,null,null,null,null,null,null,null,null,null,null,null,null,null,null,null,null,null,null,null,null,null,null,null,null,null,null,null,null,null,null,null,null,null,{"$f":"IF(AND(BC83<>\"\",BC83<>\"60\"),1,\"\")","v":""},{"$f":"IF(AND(BK83<>\"\",BK83<>\"60\"),1,\"\")","v":""},{"$f":"IF(AND(BS83<>\"\",BS83<>\"60\"),1,\"\")","v":""},{"$f":"IF(AND(CA83<>\"\",CA83<>\"60\"),1,\"\")","v":""},{"$f":"IF(AND(CI83<>\"\",CI83<>\"60\"),1,\"\")","v":""},{"$f":"IF($C83<>\"\",4,\"\")","v":""},{"$f":"IF($C83<>\"\",2,\"\")","v":""},"",null,{"$f":"IF($C83<>\"\",1,\"\")","v":""},"",null,null,null,null,null,null,null,null,null,null,null,null,null,null,null,null,null,null,null,null,null,null,null,null,"",{"$f":"IF(AND(BC83<>\"\",BC83<>\"60\"),1,\"\")","v":""},null,{"$f":"IF(AND(BK83<>\"\",BK83<>\"60\"),1,\"\")","v":""},null,{"$f":"IF(AND(BS83<>\"\",BS83<>\"60\"),1,\"\")","v":""},null,{"$f":"IF(AND(CA83<>\"\",CA83<>\"60\"),1,\"\")","v":""},null,{"$f":"IF(AND(CI83<>\"\",CI83<>\"60\"),1,\"\")","v":""}]
[null,67,"","",null,"","",null,null,null,null,"",null,null,null,null,null,null,null,null,null,null,null,null,null,null,null,null,null,null,null,null,null,null,null,null,null,null,null,null,null,null,null,null,null,null,"","",null,null,null,null,null,null,null,null,null,null,null,null,null,null,null,null,null,null,null,null,null,null,null,null,null,null,null,null,null,null,null,null,null,null,null,null,null,null,null,null,null,null,null,null,null,"","","","","","","","",null,"","",null,null,null,null,null,null,null,null,null,null,null,null,null,null,null,null,null,null,null,null,null,null,null,null,"","",null,"",null,"",null,"",null,""]
[null,68,"","",null,"","",null,null,null,null,"",null,null,null,null,null,null,null,null,null,null,null,null,null,null,null,null,null,null,null,null,null,null,null,null,null,null,null,null,null,null,null,null,null,null,"","",null,null,null,null,null,null,null,null,null,null,null,null,null,null,null,null,null,null,null,null,null,null,null,null,null,null,null,null,null,null,null,null,null,null,null,null,null,null,null,null,null,null,null,null,null,"","","","","","","","",null,"","",null,null,null,null,null,null,null,null,null,null,null,null,null,null,null,null,null,null,null,null,null,null,null,null,"","",null,"",null,"",null,"",null,""]
[null,69,"","",null,"","",null,null,null,null,"",null,null,null,null,null,null,null,null,null,null,null,null,null,null,null,null,null,null,null,null,null,null,null,null,null,null,null,null,null,null,null,null,null,null,"","",null,null,null,null,null,null,null,null,null,null,null,null,null,null,null,null,null,null,null,null,null,null,null,null,null,null,null,null,null,null,null,null,null,null,null,null,null,null,null,null,null,null,null,null,null,"","","","","","","","",null,"","",null,null,null,null,null,null,null,null,null,null,null,null,null,null,null,null,null,null,null,null,null,null,null,null,"","",null,"",null,"",null,"",null,""]
[null,70,"","",null,"","",null,null,null,null,"",null,null,null,null,null,null,null,null,null,null,null,null,null,null,null,null,null,null,null,null,null,null,null,null,null,null,null,null,null,null,null,null,null,null,"","",null,null,null,null,null,null,null,null,null,null,null,null,null,null,null,null,null,null,null,null,null,null,null,null,null,null,null,null,null,null,null,null,null,null,null,null,null,null,null,null,null,null,null,null,null,"","","","","","","","",null,"","",null,null,null,null,null,null,null,null,null,null,null,null,null,null,null,null,null,null,null,null,null,null,null,null,"","",null,"",null,"",null,"",null,""]
[null,71,"","",null,"","",null,null,null,null,"",null,null,null,null,null,null,null,null,null,null,null,null,null,null,null,null,null,null,null,null,null,null,null,null,null,null,null,null,null,null,null,null,null,null,"","",null,null,null,null,null,null,null,null,null,null,null,null,null,null,null,null,null,null,null,null,null,null,null,null,null,null,null,null,null,null,null,null,null,null,null,null,null,null,null,null,null,null,null,null,null,"","","","","","","","",null,"","",null,null,null,null,null,null,null,null,null,null,null,null,null,null,null,null,null,null,null,null,null,null,null,null,"","",null,"",null,"",null,"",null,""]
[null,72,"","",null,"","",null,null,null,null,"",null,null,null,null,null,null,null,null,null,null,null,null,null,null,null,null,null,null,null,null,null,null,null,null,null,null,null,null,null,null,null,null,null,null,"","",null,null,null,null,null,null,null,null,null,null,null,null,null,null,null,null,null,null,null,null,null,null,null,null,null,null,null,null,null,null,null,null,null,null,null,null,null,null,null,null,null,null,null,null,null,"","","","","","","","",null,"","",null,null,null,null,null,null,null,null,null,null,null,null,null,null,null,null,null,null,null,null,null,null,null,null,"","",null,"",null,"",null,"",null,""]
[null,73,"","",null,"","",null,null,null,null,"",null,null,null,null,null,null,null,null,null,null,null,null,null,null,null,null,null,null,null,null,null,null,null,null,null,null,null,null,null,null,null,null,null,null,"","",null,null,null,null,null,null,null,null,null,null,null,null,null,null,null,null,null,null,null,null,null,null,null,null,null,null,null,null,null,null,null,null,null,null,null,null,null,null,null,null,null,null,null,null,null,"","","","","","","","",null,"","",null,null,null,null,null,null,null,null,null,null,null,null,null,null,null,null,null,null,null,null,null,null,null,null,"","",null,"",null,"",null,"",null,""]
[null,74,"","",null,"","",null,null,null,null,"",null,null,null,null,null,null,null,null,null,null,null,null,null,null,null,null,null,null,null,null,null,null,null,null,null,null,null,null,null,null,null,null,null,null,"","",null,null,null,null,null,null,null,null,null,null,null,null,null,null,null,null,null,null,null,null,null,null,null,null,null,null,null,null,null,null,null,null,null,null,null,null,null,null,null,null,null,null,null,null,null,"","","","","","","","",null,"","",null,null,null,null,null,null,null,null,null,null,null,null,null,null,null,null,null,null,null,null,null,null,null,null,"","",null,"",null,"",null,"",null,""]
[null,75,"","",null,"","",null,null,null,null,"",null,null,null,null,null,null,null,null,null,null,null,null,null,null,null,null,null,null,null,null,null,null,null,null,null,null,null,null,null,null,null,null,null,null,"","",null,null,null,null,null,null,null,null,null,null,null,null,null,null,null,null,null,null,null,null,null,null,null,null,null,null,null,null,null,null,null,null,null,null,null,null,null,null,null,null,null,null,null,null,null,"","","","","","","","",null,"","",null,null,null,null,null,null,null,null,null,null,null,null,null,null,null,null,null,null,null,null,null,null,null,null,"","",null,"",null,"",null,"",null,""]
[null,76,"","",null,"","",null,null,null,null,"",null,null,null,null,null,null,null,null,null,null,null,null,null,null,null,null,null,null,null,null,null,null,null,null,null,null,null,null,null,null,null,null,null,null,"","",null,null,null,null,null,null,null,null,null,null,null,null,null,null,null,null,null,null,null,null,null,null,null,null,null,null,null,null,null,null,null,null,null,null,null,null,null,null,null,null,null,null,null,null,null,"","","","","","","","",null,"","",null,null,null,null,null,null,null,null,null,null,null,null,null,null,null,null,null,null,null,null,null,null,null,null,"","",null,"",null,"",null,"",null,""]
[null,77,"","",null,"","",null,null,null,null,"",null,null,null,null,null,null,null,null,null,null,null,null,null,null,null,null,null,null,null,null,null,null,null,null,null,null,null,null,null,null,null,null,null,null,"","",null,null,null,null,null,null,null,null,null,null,null,null,null,null,null,null,null,null,null,null,null,null,null,null,null,null,null,null,null,null,null,null,null,null,null,null,null,null,null,null,null,null,null,null,null,"","","","","","","","",null,"","",null,null,null,null,null,null,null,null,null,null,null,null,null,null,null,null,null,null,null,null,null,null,null,null,"","",null,"",null,"",null,"",null,""]
[null,78,"","",null,"","",null,null,null,null,"",null,null,null,null,null,null,null,null,null,null,null,null,null,null,null,null,null,null,null,null,null,null,null,null,null,null,null,null,null,null,null,null,null,null,"","",null,null,null,null,null,null,null,null,null,null,null,null,null,null,null,null,null,null,null,null,null,null,null,null,null,null,null,null,null,null,null,null,null,null,null,null,null,null,null,null,null,null,null,null,null,"","","","","","","","",null,"","",null,null,null,null,null,null,null,null,null,null,null,null,null,null,null,null,null,null,null,null,null,null,null,null,"","",null,"",null,"",null,"",null,""]
[null,79,"","",null,"","",null,null,null,null,"",null,null,null,null,null,null,null,null,null,null,null,null,null,null,null,null,null,null,null,null,null,null,null,null,null,null,null,null,null,null,null,null,null,null,"","",null,null,null,null,null,null,null,null,null,null,null,null,null,null,null,null,null,null,null,null,null,null,null,null,null,null,null,null,null,null,null,null,null,null,null,null,null,null,null,null,null,null,null,null,null,"","","","","","","","",null,"","",null,null,null,null,null,null,null,null,null,null,null,null,null,null,null,null,null,null,null,null,null,null,null,null,"","",null,"",null,"",null,"",null,""]
[null,80,"","",null,"","",null,null,null,null,"",null,null,null,null,null,null,null,null,null,null,null,null,null,null,null,null,null,null,null,null,null,null,null,null,null,null,null,null,null,null,null,null,null,null,"","",null,null,null,null,null,null,null,null,null,null,null,null,null,null,null,null,null,null,null,null,null,null,null,null,null,null,null,null,null,null,null,null,null,null,null,null,null,null,null,null,null,null,null,null,null,"","","","","","","","",null,"","",null,null,null,null,null,null,null,null,null,null,null,null,null,null,null,null,null,null,null,null,null,null,null,null,"","",null,"",null,"",null,"",null,""]
[null,81,"","",null,"","",null,null,null,null,"",null,null,null,null,null,null,null,null,null,null,null,null,null,null,null,null,null,null,null,null,null,null,null,null,null,null,null,null,null,null,null,null,null,null,"","",null,null,null,null,null,null,null,null,null,null,null,null,null,null,null,null,null,null,null,null,null,null,null,null,null,null,null,null,null,null,null,null,null,null,null,null,null,null,null,null,null,null,null,null,null,"","","","","","","","",null,"","",null,null,null,null,null,null,null,null,null,null,null,null,null,null,null,null,null,null,null,null,null,null,null,null,"","",null,"",null,"",null,"",null,""]
[null,82,"","",null,"","",null,null,null,null,"",null,null,null,null,null,null,null,null,null,null,null,null,null,null,null,null,null,null,null,null,null,null,null,null,null,null,null,null,null,null,null,null,null,null,"","",null,null,null,null,null,null,null,null,null,null,null,null,null,null,null,null,null,null,null,null,null,null,null,null,null,null,null,null,null,null,null,null,null,null,null,null,null,null,null,null,null,null,null,null,null,"","","","","","","","",null,"","",null,null,null,null,null,null,null,null,null,null,null,null,null,null,null,null,null,null,null,null,null,null,null,null,"","",null,"",null,"",null,"",null,""]
[null,83,"","",null,"","",null,null,null,null,"",null,null,null,null,null,null,null,null,null,null,null,null,null,null,null,null,null,null,null,null,null,null,null,null,null,null,null,null,null,null,null,null,null,null,"","",null,null,null,null,null,null,null,null,null,null,null,null,null,null,null,null,null,null,null,null,null,null,null,null,null,null,null,null,null,null,null,null,null,null,null,null,null,null,null,null,null,null,null,null,null,"","","","","","","","",null,"","",null,null,null,null,null,null,null,null,null,null,null,null,null,null,null,null,null,null,null,null,null,null,null,null,"","",null,"",null,"",null,"",null,""]
[null,84,"","",null,"","",null,null,null,null,"",null,null,null,null,null,null,null,null,null,null,null,null,null,null,null,null,null,null,null,null,null,null,null,null,null,null,null,null,null,null,null,null,null,null,"","",null,null,null,null,null,null,null,null,null,null,null,null,null,null,null,null,null,null,null,null,null,null,null,null,null,null,null,null,null,null,null,null,null,null,null,null,null,null,null,null,null,null,null,null,null,"","","","","","","","",null,"","",null,null,null,null,null,null,null,null,null,null,null,null,null,null,null,null,null,null,null,null,null,null,null,null,"","",null,"",null,"",null,"",null,""]
[null,85,"","",null,"","",null,null,null,null,"",null,null,null,null,null,null,null,null,null,null,null,null,null,null,null,null,null,null,null,null,null,null,null,null,null,null,null,null,null,null,null,null,null,null,"","",null,null,null,null,null,null,null,null,null,null,null,null,null,null,null,null,null,null,null,null,null,null,null,null,null,null,null,null,null,null,null,null,null,null,null,null,null,null,null,null,null,null,null,null,null,"","","","","","","","",null,"","",null,null,null,null,null,null,null,null,null,null,null,null,null,null,null,null,null,null,null,null,null,null,null,null,"","",null,"",null,"",null,"",null,""]
[null,86,"","",null,"","",null,null,null,null,"",null,null,null,null,null,null,null,null,null,null,null,null,null,null,null,null,null,null,null,null,null,null,null,null,null,null,null,null,null,null,null,null,null,null,"","",null,null,null,null,null,null,null,null,null,null,null,null,null,null,null,null,null,null,null,null,null,null,null,null,null,null,null,null,null,null,null,null,null,null,null,null,null,null,null,null,null,null,null,null,null,"","","","","","","","",null,"","",null,null,null,null,null,null,null,null,null,null,null,null,null,null,null,null,null,null,null,null,null,null,null,null,"","",null,"",null,"",null,"",null,""]
[null,87,"","",null,"","",null,null,null,null,"",null,null,null,null,null,null,null,null,null,null,null,null,null,null,null,null,null,null,null,null,null,null,null,null,null,null,null,null,null,null,null,null,null,null,"","",null,null,null,null,null,null,null,null,null,null,null,null,null,null,null,null,null,null,null,null,null,null,null,null,null,null,null,null,null,null,null,null,null,null,null,null,null,null,null,null,null,null,null,null,null,"","","","","","","","",null,"","",null,null,null,null,null,null,null,null,null,null,null,null,null,null,null,null,null,null,null,null,null,null,null,null,"","",null,"",null,"",null,"",null,""]
[null,88,"","",null,"","",null,null,null,null,"",null,null,null,null,null,null,null,null,null,null,null,null,null,null,null,null,null,null,null,null,null,null,null,null,null,null,null,null,null,null,null,null,null,null,"","",null,null,null,null,null,null,null,null,null,null,null,null,null,null,null,null,null,null,null,null,null,null,null,null,null,null,null,null,null,null,null,null,null,null,null,null,null,null,null,null,null,null,null,null,null,"","","","","","","","",null,"","",null,null,null,null,null,null,null,null,null,null,null,null,null,null,null,null,null,null,null,null,null,null,null,null,"","",null,"",null,"",null,"",null,""]
[null,89,"","",null,"","",null,null,null,null,"",null,null,null,null,null,null,null,null,null,null,null,null,null,null,null,null,null,null,null,null,null,null,null,null,null,null,null,null,null,null,null,null,null,null,"","",null,null,null,null,null,null,null,null,null,null,null,null,null,null,null,null,null,null,null,null,null,null,null,null,null,null,null,null,null,null,null,null,null,null,null,null,null,null,null,null,null,null,null,null,null,"","","","","","","","",null,"","",null,null,null,null,null,null,null,null,null,null,null,null,null,null,null,null,null,null,null,null,null,null,null,null,"","",null,"",null,"",null,"",null,""]
[null,90,"","",null,"","",null,null,null,null,"",null,null,null,null,null,null,null,null,null,null,null,null,null,null,null,null,null,null,null,null,null,null,null,null,null,null,null,null,null,null,null,null,null,null,"","",null,null,null,null,null,null,null,null,null,null,null,null,null,null,null,null,null,null,null,null,null,null,null,null,null,null,null,null,null,null,null,null,null,null,null,null,null,null,null,null,null,null,null,null,null,"","","","","","","","",null,"","",null,null,null,null,null,null,null,null,null,null,null,null,null,null,null,null,null,null,null,null,null,null,null,null,"","",null,"",null,"",null,"",null,""]
[null,91,"","",null,"","",null,null,null,null,"",null,null,null,null,null,null,null,null,null,null,null,null,null,null,null,null,null,null,null,null,null,null,null,null,null,null,null,null,null,null,null,null,null,null,"","",null,null,null,null,null,null,null,null,null,null,null,null,null,null,null,null,null,null,null,null,null,null,null,null,null,null,null,null,null,null,null,null,null,null,null,null,null,null,null,null,null,null,null,null,null,"","","","","","","","",null,"","",null,null,null,null,null,null,null,null,null,null,null,null,null,null,null,null,null,null,null,null,null,null,null,null,"","",null,"",null,"",null,"",null,""]
[null,92,"","",null,"","",null,null,null,null,"",null,null,null,null,null,null,null,null,null,null,null,null,null,null,null,null,null,null,null,null,null,null,null,null,null,null,null,null,null,null,null,null,null,null,"","",null,null,null,null,null,null,null,null,null,null,null,null,null,null,null,null,null,null,null,null,null,null,null,null,null,null,null,null,null,null,null,null,null,null,null,null,null,null,null,null,null,null,null,null,null,"","","","","","","","",null,"","",null,null,null,null,null,null,null,null,null,null,null,null,null,null,null,null,null,null,null,null,null,null,null,null,"","",null,"",null,"",null,"",null,""]
[null,93,"","",null,"","",null,null,null,null,"",null,null,null,null,null,null,null,null,null,null,null,null,null,null,null,null,null,null,null,null,null,null,null,null,null,null,null,null,null,null,null,null,null,null,"","",null,null,null,null,null,null,null,null,null,null,null,null,null,null,null,null,null,null,null,null,null,null,null,null,null,null,null,null,null,null,null,null,null,null,null,null,null,null,null,null,null,null,null,null,null,"","","","","","","","",null,"","",null,null,null,null,null,null,null,null,null,null,null,null,null,null,null,null,null,null,null,null,null,null,null,null,"","",null,"",null,"",null,"",null,""]
[null,94,"","",null,"","",null,null,null,null,"",null,null,null,null,null,null,null,null,null,null,null,null,null,null,null,null,null,null,null,null,null,null,null,null,null,null,null,null,null,null,null,null,null,null,"","",null,null,null,null,null,null,null,null,null,null,null,null,null,null,null,null,null,null,null,null,null,null,null,null,null,null,null,null,null,null,null,null,null,null,null,null,null,null,null,null,null,null,null,null,null,"","","","","","","","",null,"","",null,null,null,null,null,null,null,null,null,null,null,null,null,null,null,null,null,null,null,null,null,null,null,null,"","",null,"",null,"",null,"",null,""]
[null,95,"","",null,"","",null,null,null,null,"",null,null,null,null,null,null,null,null,null,null,null,null,null,null,null,null,null,null,null,null,null,null,null,null,null,null,null,null,null,null,null,null,null,null,"","",null,null,null,null,null,null,null,null,null,null,null,null,null,null,null,null,null,null,null,null,null,null,null,null,null,null,null,null,null,null,null,null,null,null,null,null,null,null,null,null,null,null,null,null,null,"","","","","","","","",null,"","",null,null,null,null,null,null,null,null,null,null,null,null,null,null,null,null,null,null,null,null,null,null,null,null,"","",null,"",null,"",null,"",null,""]
[null,96,"","",null,"","",null,null,null,null,"",null,null,null,null,null,null,null,null,null,null,null,null,null,null,null,null,null,null,null,null,null,null,null,null,null,null,null,null,null,null,null,null,null,null,"","",null,null,null,null,null,null,null,null,null,null,null,null,null,null,null,null,null,null,null,null,null,null,null,null,null,null,null,null,null,null,null,null,null,null,null,null,null,null,null,null,null,null,null,null,null,"","","","","","","","",null,"","",null,null,null,null,null,null,null,null,null,null,null,null,null,null,null,null,null,null,null,null,null,null,null,null,"","",null,"",null,"",null,"",null,""]
[null,97,"","",null,"","",null,null,null,null,"",null,null,null,null,null,null,null,null,null,null,null,null,null,null,null,null,null,null,null,null,null,null,null,null,null,null,null,null,null,null,null,null,null,null,"","",null,null,null,null,null,null,null,null,null,null,null,null,null,null,null,null,null,null,null,null,null,null,null,null,null,null,null,null,null,null,null,null,null,null,null,null,null,null,null,null,null,null,null,null,null,"","","","","","","","",null,"","",null,null,null,null,null,null,null,null,null,null,null,null,null,null,null,null,null,null,null,null,null,null,null,null,"","",null,"",null,"",null,"",null,""]
[null,98,"","",null,"","",null,null,null,null,"",null,null,null,null,null,null,null,null,null,null,null,null,null,null,null,null,null,null,null,null,null,null,null,null,null,null,null,null,null,null,null,null,null,null,"","",null,null,null,null,null,null,null,null,null,null,null,null,null,null,null,null,null,null,null,null,null,null,null,null,null,null,null,null,null,null,null,null,null,null,null,null,null,null,null,null,null,null,null,null,null,"","","","","","","","",null,"","",null,null,null,null,null,null,null,null,null,null,null,null,null,null,null,null,null,null,null,null,null,null,null,null,"","",null,"",null,"",null,"",null,""]
[null,99,"","",null,"","",null,null,null,null,"",null,null,null,null,null,null,null,null,null,null,null,null,null,null,null,null,null,null,null,null,null,null,null,null,null,null,null,null,null,null,null,null,null,null,"","",null,null,null,null,null,null,null,null,null,null,null,null,null,null,null,null,null,null,null,null,null,null,null,null,null,null,null,null,null,null,null,null,null,null,null,null,null,null,null,null,null,null,null,null,null,"","","","","","","","",null,"","",null,null,null,null,null,null,null,null,null,null,null,null,null,null,null,null,null,null,null,null,null,null,null,null,"","",null,"",null,"",null,"",null,""]
[null,100,"","",null,"","",null,null,null,null,"",null,null,null,null,null,null,null,null,null,null,null,null,null,null,null,null,null,null,null,null,null,null,null,null,null,null,null,null,null,null,null,null,null,null,"","",null,null,null,null,null,null,null,null,null,null,null,null,null,null,null,null,null,null,null,null,null,null,null,null,null,null,null,null,null,null,null,null,null,null,null,null,null,null,null,null,null,null,null,null,null,"","","","","","","","",null,"","",null,null,null,null,null,null,null,null,null,null,null,null,null,null,null,null,null,null,null,null,null,null,null,null,"","",null,"",null,"",null,"",null,""]

{"sheet":"VBA処理メモ","index":3,"n_rows":28,"n_cols":2,"rows_kept":28,"cut":false,"hidden":true,"merged":[[21,0,21,1],[25,0,25,1],[1,0,1,1],[7,0,7,1]]}
[]
["役務枝　処理対象行"]
["新規"]
[]
["修正変更"]
[]
[]
["決済方法　処理対象行"]
["新規",14]
[]
[]
[]
[]
[]
["修正変更",20]
[]
[]
[]
[]
[]
[]
["役務枝確認ダイアログ 非表示フラグ"]
["新規"]
["修正変更"]
[]
["決済情報確認ダイアログ 非表示フラグ"]
["新規"]
["修正変更"]

{"sheet":"コード一覧","index":4,"n_rows":97,"n_cols":21,"rows_kept":97,"cut":false,"hidden":false,"merged":[[2,19,2,20],[2,1,2,3],[2,5,2,6],[2,8,2,11],[2,13,2,14],[2,16,2,17],[39,19,39,20],[8,16,8,17],[19,16,19,17],[21,19,21,20],[24,13,24,14],[27,16,27,17],[27,19,27,20],[30,13,30,14],[32,16,32,17],[33,19,33,20],[36,13,36,14],[37,16,37,17]]}
["【別紙】コード一覧"]
[null,"※下記一覧に記載されていない通貨コードについてはWebでお手続きできません。詳細\nはNEXIまでお問い合わせください。",null,null,null,null,null,null,null,null,null,null,null,"※　－ ： 企総用・入力（修正、変更等）シートでのみ使用可能"]
[null,"通貨コード",null,null,null,"主な国コード",null,null,"決済方法",null,null,null,null,"支払保証",null,null,"ユーザンス月日指定",null,null,"変更事由"]
[null,"通貨コード","通貨","表示",null,"国名","国コード",null,"コード","決済方法","船後保険期間","保険記入方法",null,"コード","内容",null,"コード","内容",null,"コード","内容"]
[null,"001","アメリカドル","USD",null,"アメリカ",304,null,"10","L/C at sight","30日","入力不要",null,"10","円借款",null,"1","月指定",null,"01","増額新規"]
[null,"015","円","JPY",null,"日本",192,null,"11","L/C *** days after B/L date","***日","原契約のユーザンスを入力",null,"11","無償援助",null,"2","日指定",null,"02","減額変更"]
[null,"091","ユーロ","EUR",null,"イギリス",205,null,"12","L/C *** days after sight","*** + 30日","原契約のユーザンスを入力",null,"20","ＩＢＲＤ(国際復興開発銀行)",null,"－","項目値取消※",null,"03","通貨の変更"]
[null,"002","イギリスポンド","GBP",null,"カナダ",302,null,"19","L/C other","Ｌ／Ｓ～決済日","原契約の決済日を記入",null,"21","ＩＤＡ(国際開発協会)",null,null,null,null,"04","貨物の変更"]
[null,"003","カナダドル","CAD",null,"スイス",215,null,"20","D/A *** days after B/L date","***日","原契約のユーザンスを入力",null,"22","ＩＦＣ(国際金融公社)",null,"受渡条件",null,null,"05","契約形態の変更"]
[null,"004","スイスフラン","CHF",null,"ドイツ",213,null,"21","D/A *** days after sight","*** + 30日","原契約のユーザンスを入力",null,"23","ＡＤＢ(アジア開発銀行)",null,"コード","内容",null,"06","船積予定時期の変更（追加保険料を要するもの）"]
[null,"005","ドイツマルク","DEM",null,"スウェーデン",203,null,"29","D/A other","Ｌ／Ｓ～決済日","原契約の決済日を記入",null,"24","ＪＢＩＣ(国際協力銀行)",null,"1","ＦＯＢ",null,"10","支払国（ILC発行・確認国）の変更"]
[null,"006","スウエーデンクローネ","SEK",null,"オランダ",207,null,"30","D/P at sight","30日","入力不要",null,"41","ＡＦＤＢ(アフリカ開発銀行)",null,"2","Ｃ＆Ｆ",null,"11","売相手国の変更"]
[null,"007","オランダギルダー","NLG",null,"ベルギー",208,null,"31","D/P *** days after B/L date","***日","原契約のユーザンスを入力",null,"42","ＡＦＤＦ(アフリカ開発基金)",null,"3","ＣＩＦ",null,"12","仕向国の変更"]
[null,"008","ベルギーフラン","BEF",null,"フランス",210,null,"32","D/P *** days after sight","*** + 30日","原契約のユーザンスを入力",null,"44","ＩＤＢ(米州開発銀行)",null,"4","ＦＡＳ",null,"13","同一国支払人（ILC発行・確認者）の変更"]
[null,"009","フランスフラン","FRF",null,"オーストリア",225,null,"39","D/P other","Ｌ／Ｓ～決済日","原契約の決済日を記入",null,"45","ＣＡＢＥＩ（中米経済統合銀行）",null,"5","ＥＸＷ",null,"14","同一国相手方の変更"]
[null,"010","オーストリアシリング","ATS",null,"デンマーク",204,null,"40","REMITTANCE at sight","30日","入力不要",null,"46","ＣＡＦ（アンデス開発公社）",null,"6","ＦＯＢ　Ａｉｒｐｏｒｔ",null,"15","決済条件の変更（延長）"]
[null,"011","デンマーククローネ","DKK",null,"イタリア",220,null,"41","REMITTANCE *** days after B/L date","***日","原契約のユーザンスを入力",null,"47","ＣＤＢ(カリブ開発銀行)",null,"7","ＦＲＣ",null,"16","決済条件の変更（短縮）"]
[null,"012","イタリアリラ","ITL",null,"ノルウェー",202,null,"42","REMITTANCE *** days after receipt of documents","*** + 30日","原契約のユーザンスを入力",null,"48","ＥＤＦ(欧州開発基金)",null,"9","その他",null,"17","決済条件の変更（その他）"]
[null,"013","ノルウェークローネ","NOK",null,"ポルトガル",217,null,"49","REMITTANCE other","Ｌ／Ｓ～決済日","原契約の決済日を記入",null,"49","ＥＩＢ(欧州投資銀行)",null,null,null,null,"99","その他の変更"]
[null,"014","ポルトガルエスクード","PTE",null,"オーストラリア",601,null,"60","100% advance payment","なし","入力不要",null,"74","ＩＦＡＤ(国際農業開発基金)",null,"処理種別",null,null,"－","項目値取消※"]
[null,"016","オーストラリアドル","AUD",null,"中華人民共和国","105",null,"64","progress payment(equipment)","***日","原契約のユーザンスを入力",null,"75","ＥＢＲＤ(欧州復興開発銀行)",null,"コード","内容"]
[null,"017","人民元","CNY",null,"ニュージーランド",606,null,"65","progress payment(service)","***日","原契約のユーザンスを入力",null,"90","ＩＬＣ",null,"2","変更",null,"船積・決済修正削除フラグ"]
[null,"018","ニュージランドドル","NZD",null,"香港",108,null,"70","retention(equipment)","Ｌ／Ｓ～決済日","原契約の決済日を記入",null,"－","項目値取消※",null,"3","訂正内変",null,"コード","内容"]
[null,"019","香港ドル","HKD",null,"シンガポール",112,null,"71","retention(service)","Ｌ／Ｓ～決済日","原契約の決済日を記入",null,null,null,null,"4","修正",null,"1","削除"]
[null,"020","シンガポールドル","SGD",null,"ミャンマー","122",null,"73","milestone(scheduled) payment(multiple,equipment) …covered for due before Ｌ／Ｓ","Ｌ／Ｓ～決済日","原契約の決済日を記入",null,"特約商品－外貨建",null,null,"5","取消",null,"2","修正"]
[null,"025","アフガニスタナフガニ","AFA",null,"インド",123,null,"75","milestone(scheduled) payment(one-time,equipment) …covered for due before Ｌ／Ｓ","Ｌ／Ｓ～決済日","原契約の決済日を記入",null,"コード","内容",null,"5","修正（枝取消）",null,"3","追加"]
[null,"026","バングラディシュタカ","BDT",null,"インドネシア",118,null,"76","milestone payment(service)","***日","原契約のユーザンスを入力",null,"0","なし"]
[null,"027","ＢＵクヤット","MYK",null,"パキスタン",124,null,"78","scheduled payment(one-time・service)","Ｌ／Ｓ～決済日","原契約の決済日を記入",null,"1","あり",null,"証券番号－本支店",null,null,"支配関係の有無"]
[null,"028","ＣＡリエル","CAR",null,"韓国",103,null,"99","settlement other(equipment)","Ｌ／Ｓ～決済日","原契約の決済日を記入",null,"－","項目値取消※",null,"コード","内容",null,"コード","内容"]
[null,"029","インドルピー","INR",null,"タイ",111,null,null,null,null,null,null,null,null,null,"10","本店",null,"0","なし"]
[null,"030","インドネシアルピー","IDR",null,"フィンランド",222,null,null,null,null,null,null,"他の保険契約",null,null,"15","支店",null,"1","あり"]
[null,"031","ＬＡＯキャブ","LAK",null,"アイルランド",206,null,null,null,null,null,null,"コード","内容",null,null,null,null,"－","項目値取消※"]
[null,"032","マレーシアリンギッド","MYR",null,"スペイン",218,null,null,null,null,null,null,"0","なし",null,"契約形態"]
[null,"033","ネパールルピー","NPR",null,"クウェイト",138,null,null,null,null,null,null,"1","あり",null,"コード","内容",null,"役務枝"]
[null,"034","パキスタンルピー","PKR",null,"カタール",140,null,null,null,null,null,null,"－","項目値取消※",null,"11","輸出",null,"コード","内容"]
[null,"035","パブアニュギニアキナ","PGK",null,"サウジアラビア",137,null,null,null,null,null,null,null,null,null,"15","仲介",null,"0","役務枝以外（機器枝）"]
[null,"036","フィリピンペソ","PHP",null,"ＵＡＥ",147,null,null,null,null,null,null,"発効条件の有無",null,null,null,null,null,"1","役務枝"]
[null,"037","カンコクウォン","KRW",null,"南アフリカ",551,null,null,null,null,null,null,"コード","内容",null,"船積後付保率（非常）",null,null,"－","項目値取消※"]
[null,"038","スリランカルピー","LKR",null,"メキシコ",305,null,null,null,null,null,null,"0","なし",null,"コード","内容"]
[null,"039","タイワンドル","TWD",null,null,null,null,null,null,null,null,null,"1","あり",null,"0975","97.5%",null,"告知事項の有無"]
[null,"040","タイバーツ","THB",null,null,null,null,null,null,null,null,null,"－","項目値取消※",null,"1000","100%",null,"コード","内容"]
[null,"041","ベトナムドン","VND",null,null,null,null,null,null,null,null,null,null,null,null,"－","項目値取消※",null,"0","なし"]
[null,"042","チェコスロバキアコルナ","CSK",null,null,null,null,null,null,null,null,null,null,null,null,null,null,null,"1","あり"]
[null,"043","フィンランド　マルッカ","FIM",null,null,null,null,null,null,null,null,null,null,null,null,null,null,null,"－","項目値取消※"]
[null,"044","ヒガシドイツ　マルク","DDM"]
[null,"045","ギリシャ　ドラクマ","GRD"]
[null,"046","アイルランド　ポンド","IEP"]
[null,"047","ルクセンブルグ　フラン","LUF"]
[null,"049","ロシア　ルーブル","RUB"]
[null,"050","スペイン　ペセタ","ESP"]
[null,"051","ユーゴスラビア　ディナール","YUN"]
[null,"052","バハレーン　ディナール","BHD"]
[null,"053","イラン　リヤル","IRR"]
[null,"054","イラク　ディナール","IQD"]
[null,"055","クウェート　ディナール","KWD"]
[null,"056","オーマン　リヤル","OMR"]
[null,"057","カタール　リヤル","QAR"]
[null,"058","サウジアラビア　リヤル","SAR"]
[null,"059","シリア・アラブ　ポンド","SYP"]
[null,"060","トルコ　リラ（旧）","TRL"]
[null,"061","ＵＡＥ　ディルハム","AED"]
[null,"062","イエメン　リヤール","YER"]
[null,"063","パラグアイ　グアラーニ","PYG"]
[null,"064","コスタリカ　コロン","CRC"]
[null,"065","キューバ　ペソ","CUP"]
[null,"066","ガテマラ　ケツラル","GTQ"]
[null,"067","ホンジェラス　レムピーラ","HNL"]
[null,"068","ジャマイカ　ドル","JMD"]
[null,"069","メキシコ　ペソ","MXP"]
[null,"070","アルゼンチン　アストラル","ARA"]
[null,"071","ボリビア　ボリビアーノ","BOB"]
[null,"072","ブラジル　レアル","BRL"]
[null,"073","チリ　ペソ","CLP"]
[null,"074","コロンビア　ペソ","COP"]
[null,"075","ペルー　インティ","PEI"]
[null,"076","ウルグアイ　ペソ","UYP"]
[null,"077","ベネズエラ　ボリバール","VEB"]
[null,"078","アルジェリア　ディナール","DZD"]
[null,"079","エジプト　ポンド","EGP"]
[null,"080","ＣＦＡ　フラン","XAF"]
[null,"081","ガーナ　セディ","GHC"]
[null,"082","ケニヤ　シリング","KES"]
[null,"083","リビア　ディナール","LYD"]
[null,"084","モロッコ　ダーラム","MAD"]
[null,"085","ナイジェリア　ナイラ","NGN"]
[null,"086","ミナミアフリカ　ランド","ZAR"]
[null,"087","チュニジア　ディナール","TND"]
[null,"088","ジンバブエ　ドル","ZWD"]
[null,"089","ＥＣＵ","XEU"]
[null,"090","メキシコ　ペソ","MXN"]
[null,"092","チェコ　コルナ","CZK"]
[null,"093","ハンガリー　フォリント","HUF"]
[null,"094","ポーランド　ズロチ","PLN"]
[null,"095","スロバキア　コルナ","SKK"]
[null,"096","トルコ・ニューリラ","YTL"]
[null,"097","トルコ　リラ","TRY"]
[null,"999","その他通貨",""]

{"sheet":"コード一覧（コード値参照用）","index":5,"n_rows":97,"n_cols":21,"rows_kept":97,"cut":false,"hidden":true,"merged":[[2,19,2,20],[2,1,2,3],[2,5,2,6],[2,8,2,11],[2,13,2,14],[2,16,2,17],[39,19,39,20],[8,16,8,17],[19,16,19,17],[21,19,21,20],[24,13,24,14],[27,16,27,17],[27,19,27,20],[30,13,30,14],[32,16,32,17],[33,19,33,20],[36,13,36,14],[37,16,37,17]]}
["【別紙】コード一覧"]
[null,"※下記一覧に記載されていない通貨コードについてはWebでお手続きできません。詳細\nはNEXIまでお問い合わせください。",null,null,null,null,null,null,null,null,null,null,null,"※　－ ： 企総用・入力（修正、変更等）シートでのみ使用可能"]
[null,"通貨コード",null,null,null,"主な国コード",null,null,"決済方法",null,null,null,null,"支払保証",null,null,"ユーザンス月日指定",null,null,"変更事由"]
[null,"通貨コード","通貨","表示",null,"国名","国コード",null,"コード","決済方法","船後保険期間","保険記入方法",null,"コード","内容",null,"コード","内容",null,"コード","内容"]
[null,"001","アメリカドル","USD",null,"アメリカ",304,null,"10","L/C at sight","30日","入力不要",null,"10","円借款",null,"1","月指定",null,"01","増額新規"]
[null,"015","円","JPY",null,"日本",192,null,"11","L/C *** days after B/L date","***日","原契約のユーザンスを入力",null,"11","無償援助",null,"2","日指定",null,"02","減額変更"]
[null,"091","ユーロ","EUR",null,"イギリス",205,null,"12","L/C *** days after sight","*** + 30日","原契約のユーザンスを入力",null,"20","ＩＢＲＤ(国際復興開発銀行)",null,"－","-",null,"03","通貨の変更"]
[null,"002","イギリスポンド","GBP",null,"カナダ",302,null,"19","L/C other","Ｌ／Ｓ～決済日","原契約の決済日を記入",null,"21","ＩＤＡ(国際開発協会)",null,null,null,null,"04","貨物の変更"]
[null,"003","カナダドル","CAD",null,"スイス",215,null,"20","D/A *** days after B/L date","***日","原契約のユーザンスを入力",null,"22","ＩＦＣ(国際金融公社)",null,"受渡条件",null,null,"05","契約形態の変更"]
[null,"004","スイスフラン","CHF",null,"ドイツ",213,null,"21","D/A *** days after sight","*** + 30日","原契約のユーザンスを入力",null,"23","ＡＤＢ(アジア開発銀行)",null,"コード","内容",null,"06","船積予定時期の変更（追加保険料を要するもの）"]
[null,"005","ドイツマルク","DEM",null,"スウェーデン",203,null,"29","D/A other","Ｌ／Ｓ～決済日","原契約の決済日を記入",null,"24","ＪＢＩＣ(国際協力銀行)",null,"1","ＦＯＢ",null,"10","支払国（ILC発行・確認国）の変更"]
[null,"006","スウエーデンクローネ","SEK",null,"オランダ",207,null,"30","D/P at sight","30日","入力不要",null,"41","ＡＦＤＢ(アフリカ開発銀行)",null,"2","Ｃ＆Ｆ",null,"11","売相手国の変更"]
[null,"007","オランダギルダー","NLG",null,"ベルギー",208,null,"31","D/P *** days after B/L date","***日","原契約のユーザンスを入力",null,"42","ＡＦＤＦ(アフリカ開発基金)",null,"3","ＣＩＦ",null,"12","仕向国の変更"]
[null,"008","ベルギーフラン","BEF",null,"フランス",210,null,"32","D/P *** days after sight","*** + 30日","原契約のユーザンスを入力",null,"44","ＩＤＢ(米州開発銀行)",null,"4","ＦＡＳ",null,"13","同一国支払人（ILC発行・確認者）の変更"]
[null,"009","フランスフラン","FRF",null,"オーストリア",225,null,"39","D/P other","Ｌ／Ｓ～決済日","原契約の決済日を記入",null,"45","ＣＡＢＥＩ（中米経済統合銀行）",null,"5","ＥＸＷ",null,"14","同一国相手方の変更"]
[null,"010","オーストリアシリング","ATS",null,"デンマーク",204,null,"40","REMITTANCE at sight","30日","入力不要",null,"46","ＣＡＦ（アンデス開発公社）",null,"6","ＦＯＢ　Ａｉｒｐｏｒｔ",null,"15","決済条件の変更（延長）"]
[null,"011","デンマーククローネ","DKK",null,"イタリア",220,null,"41","REMITTANCE *** days after B/L date","***日","原契約のユーザンスを入力",null,"47","ＣＤＢ(カリブ開発銀行)",null,"7","ＦＲＣ",null,"16","決済条件の変更（短縮）"]
[null,"012","イタリアリラ","ITL",null,"ノルウェー",202,null,"42","REMITTANCE *** days after receipt of documents","*** + 30日","原契約のユーザンスを入力",null,"48","ＥＤＦ(欧州開発基金)",null,"9","その他",null,"17","決済条件の変更（その他）"]
[null,"013","ノルウェークローネ","NOK",null,"ポルトガル",217,null,"49","REMITTANCE other","Ｌ／Ｓ～決済日","原契約の決済日を記入",null,"49","ＥＩＢ(欧州投資銀行)",null,null,null,null,"99","その他の変更"]
[null,"014","ポルトガルエスクード","PTE",null,"オーストラリア",601,null,"60","100% advance payment","なし","入力不要",null,"74","ＩＦＡＤ(国際農業開発基金)",null,"処理種別",null,null,"－","-"]
[null,"016","オーストラリアドル","AUD",null,"中華人民共和国","105",null,"64","progress payment(equipment)","***日","原契約のユーザンスを入力",null,"75","ＥＢＲＤ(欧州復興開発銀行)",null,"コード","内容"]
[null,"017","人民元","CNY",null,"ニュージーランド",606,null,"65","progress payment(service)","***日","原契約のユーザンスを入力",null,"90","ＩＬＣ",null,"2","変更",null,"船積・決済修正削除フラグ"]
[null,"018","ニュージランドドル","NZD",null,"香港",108,null,"70","retention(equipment)","Ｌ／Ｓ～決済日","原契約の決済日を記入",null,"-","-",null,"3","訂正内変",null,"コード","内容"]
[null,"019","香港ドル","HKD",null,"シンガポール",112,null,"71","retention(service)","Ｌ／Ｓ～決済日","原契約の決済日を記入",null,null,null,null,"4","修正",null,"1","削除"]
[null,"020","シンガポールドル","SGD",null,"ミャンマー","122",null,"73","milestone(scheduled) payment(multiple,equipment) …covered for due before Ｌ／Ｓ","Ｌ／Ｓ～決済日","原契約の決済日を記入",null,"特約商品－外貨建",null,null,"5","取消",null,"2","修正"]
[null,"025","アフガニスタナフガニ","AFA",null,"インド",123,null,"75","milestone(scheduled) payment(one-time,equipment) …covered for due before Ｌ／Ｓ","Ｌ／Ｓ～決済日","原契約の決済日を記入",null,"コード","内容",null,"5","修正（枝取消）",null,"3","追加"]
[null,"026","バングラディシュタカ","BDT",null,"インドネシア",118,null,"76","milestone payment(service)","***日","原契約のユーザンスを入力",null,"0","なし"]
[null,"027","ＢＵクヤット","MYK",null,"パキスタン",124,null,"78","scheduled payment(one-time・service)","Ｌ／Ｓ～決済日","原契約の決済日を記入",null,"1","あり",null,"証券番号－本支店",null,null,"支配関係の有無"]
[null,"028","ＣＡリエル","CAR",null,"韓国",103,null,"99","settlement other","Ｌ／Ｓ～決済日","原契約の決済日を記入",null,"－","-",null,"コード","内容",null,"コード","内容"]
[null,"029","インドルピー","INR",null,"タイ",111,null,null,null,null,null,null,null,null,null,"10","本店",null,"0","なし"]
[null,"030","インドネシアルピー","IDR",null,"フィンランド",222,null,null,null,null,null,null,"他の保険契約",null,null,"15","支店",null,"1","あり"]
[null,"031","ＬＡＯキャブ","LAK",null,"アイルランド",206,null,null,null,null,null,null,"コード","内容",null,null,null,null,"－","-"]
[null,"032","マレーシアリンギッド","MYR",null,"スペイン",218,null,null,null,null,null,null,"0","なし",null,"契約形態"]
[null,"033","ネパールルピー","NPR",null,"クウェイト",138,null,null,null,null,null,null,"1","あり",null,"コード","内容",null,"役務枝"]
[null,"034","パキスタンルピー","PKR",null,"カタール",140,null,null,null,null,null,null,"－","-",null,"11","輸出",null,"コード","内容"]
[null,"035","パブアニュギニアキナ","PGK",null,"サウジアラビア",137,null,null,null,null,null,null,null,null,null,"15","仲介",null,"0","役務枝以外（機器枝）"]
[null,"036","フィリピンペソ","PHP",null,"ＵＡＥ",147,null,null,null,null,null,null,"発効条件の有無",null,null,null,null,null,"1","役務枝"]
[null,"037","カンコクウォン","KRW",null,"南アフリカ",551,null,null,null,null,null,null,"コード","内容",null,"船積後付保率（非常）",null,null,"－","-"]
[null,"038","スリランカルピー","LKR",null,"メキシコ",305,null,null,null,null,null,null,"0","なし",null,"コード","内容"]
[null,"039","タイワンドル","TWD",null,null,null,null,null,null,null,null,null,"1","あり",null,"0975",0.97499999999999998,null,"告知事項の有無"]
[null,"040","タイバーツ","THB",null,null,null,null,null,null,null,null,null,"－","-",null,"1000",1,null,"コード","内容"]
[null,"041","ベトナムドン","VND",null,null,null,null,null,null,null,null,null,null,null,null,"－","-",null,"0","なし"]
[null,"042","チェコスロバキアコルナ","CSK",null,null,null,null,null,null,null,null,null,null,null,null,null,null,null,"1","あり"]
[null,"043","フィンランド　マルッカ","FIM",null,null,null,null,null,null,null,null,null,null,null,null,null,null,null,"－","-"]
[null,"044","ヒガシドイツ　マルク","DDM"]
[null,"045","ギリシャ　ドラクマ","GRD"]
[null,"046","アイルランド　ポンド","IEP"]
[null,"047","ルクセンブルグ　フラン","LUF"]
[null,"049","ロシア　ルーブル","RUB"]
[null,"050","スペイン　ペセタ","ESP"]
[null,"051","ユーゴスラビア　ディナール","YUN"]
[null,"052","バハレーン　ディナール","BHD"]
[null,"053","イラン　リヤル","IRR"]
[null,"054","イラク　ディナール","IQD"]
[null,"055","クウェート　ディナール","KWD"]
[null,"056","オーマン　リヤル","OMR"]
[null,"057","カタール　リヤル","QAR"]
[null,"058","サウジアラビア　リヤル","SAR"]
[null,"059","シリア・アラブ　ポンド","SYP"]
[null,"060","トルコ　リラ（旧）","TRL"]
[null,"061","ＵＡＥ　ディルハム","AED"]
[null,"062","イエメン　リヤール","YER"]
[null,"063","パラグアイ　グアラーニ","PYG"]
[null,"064","コスタリカ　コロン","CRC"]
[null,"065","キューバ　ペソ","CUP"]
[null,"066","ガテマラ　ケツラル","GTQ"]
[null,"067","ホンジェラス　レムピーラ","HNL"]
[null,"068","ジャマイカ　ドル","JMD"]
[null,"069","メキシコ　ペソ","MXP"]
[null,"070","アルゼンチン　アストラル","ARA"]
[null,"071","ボリビア　ボリビアーノ","BOB"]
[null,"072","ブラジル　レアル","BRL"]
[null,"073","チリ　ペソ","CLP"]
[null,"074","コロンビア　ペソ","COP"]
[null,"075","ペルー　インティ","PEI"]
[null,"076","ウルグアイ　ペソ","UYP"]
[null,"077","ベネズエラ　ボリバール","VEB"]
[null,"078","アルジェリア　ディナール","DZD"]
[null,"079","エジプト　ポンド","EGP"]
[null,"080","ＣＦＡ　フラン","XAF"]
[null,"081","ガーナ　セディ","GHC"]
[null,"082","ケニヤ　シリング","KES"]
[null,"083","リビア　ディナール","LYD"]
[null,"084","モロッコ　ダーラム","MAD"]
[null,"085","ナイジェリア　ナイラ","NGN"]
[null,"086","ミナミアフリカ　ランド","ZAR"]
[null,"087","チュニジア　ディナール","TND"]
[null,"088","ジンバブエ　ドル","ZWD"]
[null,"089","ＥＣＵ","XEU"]
[null,"090","メキシコ　ペソ","MXN"]
[null,"092","チェコ　コルナ","CZK"]
[null,"093","ハンガリー　フォリント","HUF"]
[null,"094","ポーランド　ズロチ","PLN"]
[null,"095","スロバキア　コルナ","SKK"]
[null,"096","トルコ・ニューリラ","YTL"]
[null,"097","トルコ　リラ","TRY"]
[null,"999","その他通貨",""]